Workbook

Sheet マニュアル
D7: 注意事項
D9: ℹ 申請書ファイルの名称には、「【様式２～４】」が含まれていることが必要です。
D10: 他の部分は任意の文字列に変更しても問題ありません。
D12: ℹ このファイルと申請書ファイルは、フォルダ内の同一階層に保存してください。
D16: ⚠ 様式1にはマクロ計算機能を使用しております。
D17: お使いのパソコンの設定を「マクロを有効」とした状態で作業を行ってください。
D18: ⚠ シートの追加・削除、シート名の変更はできません。
D19: ⚠ 申請内容の修正等でフォルダ内に修正前・後の申請書ファイルが混在する場合、
D20: 不要なデータを含んだ一覧表が生成されてしまいます。
D21: 修正前のファイルなど集約対象外のものはフォルダから取り除いてください。
D22: ⚠ 集計後は、青色セルの部分を直接編集することができません。個別の実施希望調書（様式2～4）
D23: の内容に変更や誤りがないことを確認の上、集約作業を行ってください。
D24: ⚠ 一度集計した学校は、個別に差替え・削除することができません。申請の取下げを行う場合は
D25: 集計を初めからやり直すか、申請時に取下げを行う学校をお申し出ください。
D26: また差替えが発生する場合は、集計を初めからやり直すか、差替えデータを取り込んだ別の様式１を
D27: 一緒にご提出ください。
D32: 準備
R35: デスクトップなど、任意のわかりやすい場所に、
R36: 作業用フォルダを作成してください。
R37: フォルダ名に制約はありません。
R47: 作成したフォルダ内の同一階層に、このファイルと
R48: 各校から提出されたファイル類をすべて格納してください。
R50: 【様式２～４】以外のファイルが混在しても構いません。
D56: ⚠ ファイル名順に「1、2、3…」と応募No.が付番されますので、都道府県内において特定の学校順での
D57: 集約が必要である場合は、あらかじめ個別表のファイル名に付番してから作業を行ってください。
D99: 前頁 準備の項を終えたら、① のボタンをクリックしてください。処理が始まります。
D100: 処理が終了するとメッセージが表示され、「【様式１】実施希望調書」が生成されます。
D101: １回処理をするごとに、フォルダ内の本ファイル以外のファイルは処理済フォルダに移動されます。
D102: 個別表のファイル名と【様式２・３】実施希望調書シートに応募No.が付番されます。
D105: ℹ 数次にわたって集計を行う場合
D106: 週毎にその前週に届いた申請書を集計するなど、何回かに渡って集約処理を行うことができます。
D107: 都度、本ファイルと同一フォルダに対象の申請書ファイルを置いて① のボタンをクリックしてください。
D108: 応募No. は前回の最後の番号の次が付番され、前回作成の実施希望調書の末尾に新しい集約対象
D109: の行が追加されます。
D112: ℹ すべてのデータを削除し、最初から集約をやり直す場合
D113: ② のボタンをクリックすると、作成済みの【様式１】実施希望調書のデータはすべて削除され、
D114: 初期状態に戻ります。
D115: ※ R4【様式２～４】実施希望調書（個別表）ファイルに付番された応募No.は初期化されません。
D116: 再度集約した際に書き換えられます。

Sheet 【様式１】実施希望調書
X1: データ提出
A4: 参加校数 | D4: =COUNT(tSummary[応募No.]) -> 5 | F4: 校 | N4: 都道府県・ 政令指定都市名 | P4: 北海道 | S4: TEL | X4: 000-0000-0000
N5: 担当部（局）課 | P5: ●●県教育庁△△課 | S5: FAX | X5: 000-0000-0000
N6: 担当者氏名 | P6: ●● ●● | S6: E-MAIL | X6: ｘｘｘｘｘｘ＠xx.xxx
A8: 応募No. | B8: 推薦 順位 | C8: 実施希望校 | D8: 実施 回数 | E8: 実施日 1回目 | F8: 実施日 2回目 | G8: 実施日 3回目 | H8: 講師氏名 ※本名 | I8: 実施分野 大項目 | J8: 実施分野 中項目 | K8: 補助者人数 1回目 | L8: 補助者人数 2回目 | M8: 補助者人数 3回目 | N8: 補助者人数 合計 | O8: 謝金 | P8: 旅費 | Q8: 講演等諸雑費 | R8: 合計 | S8: 過疎 | T8: 山村 | U8: 離島 | V8: 半島 | W8: 奄美／ 小笠原 | X8: 備考
A9: =ROW()-8 -> 1 | B9: 2 | C9: =IFERROR(INDEX(【様式１】b!J:J,MATCH(【様式１】実施希望調書!A9,【様式１】b!H:H,0)),"") -> ○○市立文化小学校 | D9: =IFERROR(INDEX(【様式１】b!AA:AA,MATCH(tSummary[応募No.],【様式１】b!H:H,0)),"") -> 3 | E9: =IF(LEN(INDEX(【様式１】b!AM:AM,MATCH(tSummary[応募No.],【様式１】b!H:H,0)))=0,"",INDEX(【様式１】b!AM:AM,MATCH(tSummary[応募No.],【様式１】b!H:H,0))) -> 2022-06-10 | F9: =IF(LEN(INDEX(【様式１】b!CQ:CQ,MATCH(tSummary[応募No.],【様式１】b!H:H,0)))=0,"",INDEX(【様式１】b!CQ:CQ,MATCH(tSummary[応募No.],【様式１】b!H:H,0))) -> 2022-06-17 | G9: =IF(LEN(INDEX(【様式１】b!EU:EU,MATCH(tSummary[応募No.],【様式１】b!H:H,0)))=0,"",INDEX(【様式１】b!EU:EU,MATCH(tSummary[応募No.],【様式１】b!H:H,0))) -> 2022-06-23 | H9: =IFERROR(INDEX(【様式１】b!AB:AB,MATCH(tSummary[応募No.],【様式１】b!H:H,0)),"") -> 芸術 花子 | I9: =IFERROR(INDEX(【様式１】b!X:X,MATCH(tSummary[応募No.],【様式１】b!H:H,0)),"") -> 音楽 | J9: =IFERROR(INDEX(【様式１】b!Y:Y,MATCH(tSummary[応募No.],【様式１】b!H:H,0)),"") -> C 弦楽器 | K9: =IFERROR(INDEX(【様式１】b!CN:CN,MATCH(tSummary[応募No.],【様式１】b!H:H,0)),0) -> 3 | L9: =IFERROR(INDEX(【様式１】b!ER:ER,MATCH(tSummary[応募No.],【様式１】b!H:H,0)),0) -> 3 | M9: =IFERROR(INDEX(【様式１】b!GV:GV,MATCH(tSummary[応募No.],【様式１】b!H:H,0)),0) -> 5 | N9: =SUM(K9+L9+M9) -> 11 | O9: =IFERROR(INDEX(【様式１】b!GY:GY,MATCH(tSummary[応募No.],【様式１】b!H:H,0)),0) -> 267230 | P9: =IFERROR(INDEX(【様式１】b!GZ:GZ,MATCH(tSummary[応募No.],【様式１】b!H:H,0)),0) -> 65590 | Q9: =IFERROR(INDEX(【様式１】b!HA:HA,MATCH(tSummary[応募No.],【様式１】b!H:H,0)),0) -> 48700 | R9: =SUM(O9:Q9) -> 381520 | S9: ○
A10: 2 | C10: =IFERROR(INDEX(【様式１】b!J:J,MATCH(【様式１】実施希望調書!A10,【様式１】b!H:H,0)),"") -> △△市立△△小学校 | D10: =IFERROR(INDEX(【様式１】b!AA:AA,MATCH(tSummary[応募No.],【様式１】b!H:H,0)),"") -> 1 | E10: =IF(LEN(INDEX(【様式１】b!AM:AM,MATCH(tSummary[応募No.],【様式１】b!H:H,0)))=0,"",INDEX(【様式１】b!AM:AM,MATCH(tSummary[応募No.],【様式１】b!H:H,0))) -> 2022-07-01 | F10: =IF(LEN(INDEX(【様式１】b!CQ:CQ,MATCH(tSummary[応募No.],【様式１】b!H:H,0)))=0,"",INDEX(【様式１】b!CQ:CQ,MATCH(tSummary[応募No.],【様式１】b!H:H,0))) ->  | G10: =IF(LEN(INDEX(【様式１】b!EU:EU,MATCH(tSummary[応募No.],【様式１】b!H:H,0)))=0,"",INDEX(【様式１】b!EU:EU,MATCH(tSummary[応募No.],【様式１】b!H:H,0))) ->  | H10: =IFERROR(INDEX(【様式１】b!AB:AB,MATCH(tSummary[応募No.],【様式１】b!H:H,0)),"") -> ◎◎ ◎◎ | I10: =IFERROR(INDEX(【様式１】b!X:X,MATCH(tSummary[応募No.],【様式１】b!H:H,0)),"") -> 音楽 | J10: =IFERROR(INDEX(【様式１】b!Y:Y,MATCH(tSummary[応募No.],【様式１】b!H:H,0)),"") -> D パーカッション | K10: =IFERROR(INDEX(【様式１】b!CN:CN,MATCH(tSummary[応募No.],【様式１】b!H:H,0)),0) -> 5 | L10: =IFERROR(INDEX(【様式１】b!ER:ER,MATCH(tSummary[応募No.],【様式１】b!H:H,0)),0) -> 0 | M10: =IFERROR(INDEX(【様式１】b!GV:GV,MATCH(tSummary[応募No.],【様式１】b!H:H,0)),0) -> 0 | N10: 5 | O10: =IFERROR(INDEX(【様式１】b!GY:GY,MATCH(tSummary[応募No.],【様式１】b!H:H,0)),0) -> 133450 | P10: =IFERROR(INDEX(【様式１】b!GZ:GZ,MATCH(tSummary[応募No.],【様式１】b!H:H,0)),0) -> 3000 | Q10: =IFERROR(INDEX(【様式１】b!HA:HA,MATCH(tSummary[応募No.],【様式１】b!H:H,0)),0) -> 27600 | R10: 164050 | V10: ○
A11: 3 | C11: =IFERROR(INDEX(【様式１】b!J:J,MATCH(【様式１】実施希望調書!A11,【様式１】b!H:H,0)),"") -> △△市立△△中学校 | D11: =IFERROR(INDEX(【様式１】b!AA:AA,MATCH(tSummary[応募No.],【様式１】b!H:H,0)),"") -> 3 | E11: =IF(LEN(INDEX(【様式１】b!AM:AM,MATCH(tSummary[応募No.],【様式１】b!H:H,0)))=0,"",INDEX(【様式１】b!AM:AM,MATCH(tSummary[応募No.],【様式１】b!H:H,0))) -> 2022-06-03 | F11: =IF(LEN(INDEX(【様式１】b!CQ:CQ,MATCH(tSummary[応募No.],【様式１】b!H:H,0)))=0,"",INDEX(【様式１】b!CQ:CQ,MATCH(tSummary[応募No.],【様式１】b!H:H,0))) -> 2022-06-12 | G11: =IF(LEN(INDEX(【様式１】b!EU:EU,MATCH(tSummary[応募No.],【様式１】b!H:H,0)))=0,"",INDEX(【様式１】b!EU:EU,MATCH(tSummary[応募No.],【様式１】b!H:H,0))) -> 2022-07-14 | H11: =IFERROR(INDEX(【様式１】b!AB:AB,MATCH(tSummary[応募No.],【様式１】b!H:H,0)),"") -> □□ □□ | I11: =IFERROR(INDEX(【様式１】b!X:X,MATCH(tSummary[応募No.],【様式１】b!H:H,0)),"") -> 文学 | J11: =IFERROR(INDEX(【様式１】b!Y:Y,MATCH(tSummary[応募No.],【様式１】b!H:H,0)),"") -> A 俳句 | K11: =IFERROR(INDEX(【様式１】b!CN:CN,MATCH(tSummary[応募No.],【様式１】b!H:H,0)),0) -> 2 | L11: =IFERROR(INDEX(【様式１】b!ER:ER,MATCH(tSummary[応募No.],【様式１】b!H:H,0)),0) -> 1 | M11: =IFERROR(INDEX(【様式１】b!GV:GV,MATCH(tSummary[応募No.],【様式１】b!H:H,0)),0) -> 1 | N11: 4 | O11: =IFERROR(INDEX(【様式１】b!GY:GY,MATCH(tSummary[応募No.],【様式１】b!H:H,0)),0) -> 166870 | P11: =IFERROR(INDEX(【様式１】b!GZ:GZ,MATCH(tSummary[応募No.],【様式１】b!H:H,0)),0) -> 6250 | Q11: =IFERROR(INDEX(【様式１】b!HA:HA,MATCH(tSummary[応募No.],【様式１】b!H:H,0)),0) -> 30000 | R11: 203120
A12: 4 | C12: =IFERROR(INDEX(【様式１】b!J:J,MATCH(【様式１】実施希望調書!A12,【様式１】b!H:H,0)),"") -> ○○市立○○中学校 | D12: =IFERROR(INDEX(【様式１】b!AA:AA,MATCH(tSummary[応募No.],【様式１】b!H:H,0)),"") -> 2 | E12: =IF(LEN(INDEX(【様式１】b!AM:AM,MATCH(tSummary[応募No.],【様式１】b!H:H,0)))=0,"",INDEX(【様式１】b!AM:AM,MATCH(tSummary[応募No.],【様式１】b!H:H,0))) -> 2022-06-10 | F12: =IF(LEN(INDEX(【様式１】b!CQ:CQ,MATCH(tSummary[応募No.],【様式１】b!H:H,0)))=0,"",INDEX(【様式１】b!CQ:CQ,MATCH(tSummary[応募No.],【様式１】b!H:H,0))) -> 2022-06-17 | G12: =IF(LEN(INDEX(【様式１】b!EU:EU,MATCH(tSummary[応募No.],【様式１】b!H:H,0)))=0,"",INDEX(【様式１】b!EU:EU,MATCH(tSummary[応募No.],【様式１】b!H:H,0))) ->  | H12: =IFERROR(INDEX(【様式１】b!AB:AB,MATCH(tSummary[応募No.],【様式１】b!H:H,0)),"") -> ◇◇ ◇◇ | I12: =IFERROR(INDEX(【様式１】b!X:X,MATCH(tSummary[応募No.],【様式１】b!H:H,0)),"") -> メディア芸術 | J12: =IFERROR(INDEX(【様式１】b!Y:Y,MATCH(tSummary[応募No.],【様式１】b!H:H,0)),"") -> A メディアアート | K12: =IFERROR(INDEX(【様式１】b!CN:CN,MATCH(tSummary[応募No.],【様式１】b!H:H,0)),0) -> 1 | L12: =IFERROR(INDEX(【様式１】b!ER:ER,MATCH(tSummary[応募No.],【様式１】b!H:H,0)),0) -> 2 | M12: =IFERROR(INDEX(【様式１】b!GV:GV,MATCH(tSummary[応募No.],【様式１】b!H:H,0)),0) -> 2 | N12: 5 | O12: =IFERROR(INDEX(【様式１】b!GY:GY,MATCH(tSummary[応募No.],【様式１】b!H:H,0)),0) -> 97300 | P12: =IFERROR(INDEX(【様式１】b!GZ:GZ,MATCH(tSummary[応募No.],【様式１】b!H:H,0)),0) -> 65590 | Q12: =IFERROR(INDEX(【様式１】b!HA:HA,MATCH(tSummary[応募No.],【様式１】b!H:H,0)),0) -> 48700 | R12: 211590
A13: 5 | B13: 1 | C13: =IFERROR(INDEX(【様式１】b!J:J,MATCH(【様式１】実施希望調書!A13,【様式１】b!H:H,0)),"") -> ○○県立○○高等学校 | D13: =IFERROR(INDEX(【様式１】b!AA:AA,MATCH(tSummary[応募No.],【様式１】b!H:H,0)),"") -> 3 | E13: =IF(LEN(INDEX(【様式１】b!AM:AM,MATCH(tSummary[応募No.],【様式１】b!H:H,0)))=0,"",INDEX(【様式１】b!AM:AM,MATCH(tSummary[応募No.],【様式１】b!H:H,0))) -> 2022-10-02 | F13: =IF(LEN(INDEX(【様式１】b!CQ:CQ,MATCH(tSummary[応募No.],【様式１】b!H:H,0)))=0,"",INDEX(【様式１】b!CQ:CQ,MATCH(tSummary[応募No.],【様式１】b!H:H,0))) -> 2022-11-11 | G13: =IF(LEN(INDEX(【様式１】b!EU:EU,MATCH(tSummary[応募No.],【様式１】b!H:H,0)))=0,"",INDEX(【様式１】b!EU:EU,MATCH(tSummary[応募No.],【様式１】b!H:H,0))) -> 2022-12-04 | H13: =IFERROR(INDEX(【様式１】b!AB:AB,MATCH(tSummary[応募No.],【様式１】b!H:H,0)),"") -> 芸術 花子 | I13: =IFERROR(INDEX(【様式１】b!X:X,MATCH(tSummary[応募No.],【様式１】b!H:H,0)),"") -> 音楽 | J13: =IFERROR(INDEX(【様式１】b!Y:Y,MATCH(tSummary[応募No.],【様式１】b!H:H,0)),"") -> C 弦楽器 | K13: =IFERROR(INDEX(【様式１】b!CN:CN,MATCH(tSummary[応募No.],【様式１】b!H:H,0)),0) -> 0 | L13: =IFERROR(INDEX(【様式１】b!ER:ER,MATCH(tSummary[応募No.],【様式１】b!H:H,0)),0) -> 0 | M13: =IFERROR(INDEX(【様式１】b!GV:GV,MATCH(tSummary[応募No.],【様式１】b!H:H,0)),0) -> 0 | N13: 0 | O13: =IFERROR(INDEX(【様式１】b!GY:GY,MATCH(tSummary[応募No.],【様式１】b!H:H,0)),0) -> 106950 | P13: =IFERROR(INDEX(【様式１】b!GZ:GZ,MATCH(tSummary[応募No.],【様式１】b!H:H,0)),0) -> 1500 | Q13: =IFERROR(INDEX(【様式１】b!HA:HA,MATCH(tSummary[応募No.],【様式１】b!H:H,0)),0) -> 48700 | R13: 157150 | T13: ○ | X13: 過去4年採択実績がないため優先して採択を希望。
A14: 計 | O14: =SUM(tSummary[謝金]) -> 771800 | P14: =SUM(tSummary[旅費]) -> 141930 | Q14: =SUM(tSummary[講演等諸雑費]) -> 203700 | R14: =SUM(tSummary[合計]) -> 1117430
A15: ※域内において推薦順位を指定する場合は推薦順位を入力してください。推薦順位が特にない場合は空欄のままとしてください。
A16: ※ 「過疎地域自立促進特別措置法」、「山村振興法」、「離島振興法」、「半島振興法」、「奄美群島振興開発特別措置法」、
A17: 「小笠原諸島振興開発特別措置法」の定める地域に該当する場合は、「過疎」、「山村」、「離島」、「半島」、「奄美・小笠原」欄に○印をつけてください。
A18: ※本事業で得た個人情報は、本事業内のみで使用します
A19: ※本事業の専用ウェブページにある[個人情報について]に同意していただいたものとします

Sheet Footer (hidden)
A1: 計
A2: ※域内において推薦順位を指定する場合は推薦順位を入力してください。推薦順位が特にない場合は空欄のままとしてください。
A3: ※ 「過疎地域自立促進特別措置法」、「山村振興法」、「離島振興法」、「半島振興法」、「奄美群島振興開発特別措置法」、
A4: 「小笠原諸島振興開発特別措置法」の定める地域に該当する場合は、「過疎」、「山村」、「離島」、「半島」、「奄美・小笠原」欄に○印をつけてください。
A5: ※本事業で得た個人情報は、本事業内のみで使用します
A6: ※本事業の専用ウェブページにある[個人情報について]に同意していただいたものとします

Sheet 【様式１】b (hidden)
B1: 都道府県名 | C1: 都道府県担当部局 | D1: 都道府県担当者氏名 | E1: 都道府県TEL | F1: 都道府県FAX | G1: 都道府県メール | H1: 応募No. | I1: 推薦 順位 | J1: 実施希望校 | K1: 実施希望校ふりがな | L1: 全校児童生徒 | M1: 所在地郵便番号前 | N1: 実施校所在地郵便番号後 | O1: 実施校所在地都道府県 | P1: 実施校所在地住所 | Q1: 実施校学校長名 | R1: 実施校担当者名 | S1: 実施校TEL | T1: 実施校FAX | U1: 実施校メール | V1: 実施会場 | W1: 合同開催 | X1: 実施分野大項目 | Y1: 実施分野中項目 | Z1: 実施分野補足 | AA1: 実施 回数 | AB1: 講師氏名 | AC1: 講師氏名ふりがな | AD1: 所属団体 | AE1: 学校との関係 | AF1: 学校との関係その他 | AG1: 協力者名簿 | AH1: 連続実施年数同一講師 | AI1: 連続実施年数同一分野 | AJ1: 連続実施確認１ | AK1: 連続実施理由項目 | AL1: 連続実施理由詳細 | AM1: 実施日第1回 | AN1: 実施時間1回目 | AO1: 実施合計1回目 | AP1: 連続する実施1回目 | AQ1: 連続都道府県1回目 | AR1: 連続学校名1回目 | AS1: 教科の位置付け1回目 | AT1: 教科の位置付け詳細1回目 | AU1: 著作権1回目 | AV1: 著作権許諾取得有無1回目 | AW1: 参加児童生徒数1回目 | AX1: 参加児童生徒単位1回目 | AY1: 参加児童生徒単位詳細1回目 | AZ1: 補助者①氏名1回目 | BA1: 補助者①演奏時間1回目 | BB1: 補助者①実技時間1回目 | BC1: 補助者①単労時間1回目 | BD1: 補助者①謝金合計1回目 | BE1: 補助者②氏名1回目 | BF1: 補助者②演奏時間1回目 | BG1: 補助者②実技時間1回目 | BH1: 補助者②単労時間1回目 | BI1: 補助者②謝金合計1回目 | BJ1: 補助者③氏名1回目 | BK1: 補助者③演奏時間1回目 | BL1: 補助者③実技時間1回目 | BM1: 補助者③単労時間1回目 | BN1: 補助者③謝金合計1回目 | BO1: 補助者④氏名1回目 | BP1: 補助者④演奏時間1回目 | BQ1: 補助者④実技時間1回目 | BR1: 補助者④単労時間1回目 | BS1: 補助者④謝金合計1回目 | BT1: 補助者⑤氏名1回目 | BU1: 補助者⑤演奏時間1回目 | BV1: 補助者⑤実技時間1回目 | BW1: 補助者⑤単労時間1回目 | BX1: 補助者⑤謝金合計1回目 | BY1: 補助者⑥氏名1回目 | BZ1: 補助者⑥演奏時間1回目 | CA1: 補助者⑥実技時間1回目 | CB1: 補助者⑥単労時間1回目 | CC1: 補助者⑥謝金合計1回目 | CD1: 補助者⑦氏名1回目 | CE1: 補助者⑦演奏時間1回目 | CF1: 補助者⑦実技時間1回目 | CG1: 補助者⑦単労時間1回目 | CH1: 補助者⑦謝金合計1回目 | CI1: 補助者⑧氏名1回目 | CJ1: 補助者⑧演奏時間1回目 | CK1: 補助者⑧実技時間1回目 | CL1: 補助者⑧単労時間1回目 | CM1: 補助者⑧謝金合計1回目 | CN1: 1回目補助者人数 | CO1: 1回目謝金合計 | CP1: 事業内容1回目 | CQ1: 実施日第2回 | CR1: 実施時間2回目 | CS1: 実施合計2回目 | CT1: 連続する実施2回目 | CU1: 連続都道府県2回目 | CV1: 連続学校名2回目 | CW1: 教科の位置付け2回目 | CX1: 教科の位置付け詳細2回目 | CY1: 著作権2回目 | CZ1: 著作権許諾取得有無2回目 | DA1: 参加児童生徒数2回目 | DB1: 参加児童生徒単位2回目 | DC1: 参加児童生徒単位詳細2回目 | DD1: 補助者①氏名2回目 | DE1: 補助者①演奏時間2回目 | DF1: 補助者①実技時間2回目 | DG1: 補助者①単労時間2回目 | DH1: 補助者①謝金合計2回目 | DI1: 補助者②氏名2回目 | DJ1: 補助者②演奏時間2回目 | DK1: 補助者②実技時間2回目 | DL1: 補助者②単労時間2回目 | DM1: 補助者②謝金合計2回目 | DN1: 補助者③氏名2回目 | DO1: 補助者③演奏時間2回目 | DP1: 補助者③実技時間2回目 | DQ1: 補助者③単労時間2回目 | DR1: 補助者③謝金合計2回目 | DS1: 補助者④氏名2回目 | DT1: 補助者④演奏時間2回目 | DU1: 補助者④実技時間2回目 | DV1: 補助者④単労時間2回目 | DW1: 補助者④謝金合計2回目 | DX1: 補助者⑤氏名2回目 | DY1: 補助者⑤演奏時間2回目 | DZ1: 補助者⑤実技時間2回目 | EA1: 補助者⑤単労時間2回目 | EB1: 補助者⑤謝金合計2回目 | EC1: 補助者⑥氏名2回目 | ED1: 補助者⑥演奏時間2回目 | EE1: 補助者⑥実技時間2回目 | EF1: 補助者⑥単労時間2回目 | EG1: 補助者⑥謝金合計2回目 | EH1: 補助者⑦氏名2回目 | EI1: 補助者⑦演奏時間2回目 | EJ1: 補助者⑦実技時間2回目 | EK1: 補助者⑦単労時間2回目 | EL1: 補助者⑦謝金合計2回目 | EM1: 補助者⑧氏名2回目 | EN1: 補助者⑧演奏時間2回目 | EO1: 補助者⑧実技時間2回目 | EP1: 補助者⑧単労時間2回目 | EQ1: 補助者⑧謝金合計2回目 | ER1: 2回目補助者人数 | ES1: 2回目謝金合計 | ET1: 事業内容2回目 | EU1: 実施日第3回 | EV1: 実施時間3回目 | EW1: 実施合計3回目 | EX1: 連続する実施3回目 | EY1: 連続都道府県3回目 | EZ1: 連続学校名3回目 | FA1: 教科の位置付け3回目 | FB1: 教科の位置付け詳細3回目 | FC1: 著作権3回目 | FD1: 著作権許諾取得有無3回目 | FE1: 参加児童生徒数3回目 | FF1: 参加児童生徒単位3回目 | FG1: 参加児童生徒単位詳細3回目 | FH1: 補助者①氏名3回目 | FI1: 補助者①演奏時間3回目 | FJ1: 補助者①実技時間3回目 | FK1: 補助者①単労時間3回目 | FL1: 補助者①謝金合計3回目 | FM1: 補助者②氏名3回目 | FN1: 補助者②演奏時間3回目 | FO1: 補助者②実技時間3回目 | FP1: 補助者②単労時間3回目 | FQ1: 補助者②謝金合計3回目 | FR1: 補助者③氏名3回目 | FS1: 補助者③演奏時間3回目 | FT1: 補助者③実技時間3回目 | FU1: 補助者③単労時間3回目 | FV1: 補助者③謝金合計3回目 | FW1: 補助者④氏名3回目 | FX1: 補助者④演奏時間3回目 | FY1: 補助者④実技時間3回目 | FZ1: 補助者④単労時間3回目 | GA1: 補助者④謝金合計3回目 | GB1: 補助者⑤氏名3回目 | GC1: 補助者⑤演奏時間3回目 | GD1: 補助者⑤実技時間3回目 | GE1: 補助者⑤単労時間3回目 | GF1: 補助者⑤謝金合計3回目 | GG1: 補助者⑥氏名3回目 | GH1: 補助者⑥演奏時間3回目 | GI1: 補助者⑥実技時間3回目 | GJ1: 補助者⑥単労時間3回目 | GK1: 補助者⑥謝金合計3回目 | GL1: 補助者⑦氏名3回目 | GM1: 補助者⑦演奏時間3回目 | GN1: 補助者⑦実技時間3回目 | GO1: 補助者⑦単労時間3回目 | GP1: 補助者⑦謝金合計3回目 | GQ1: 補助者⑧氏名3回目 | GR1: 補助者⑧演奏時間3回目 | GS1: 補助者⑧実技時間3回目 | GT1: 補助者⑧単労時間3回目 | GU1: 補助者⑧謝金合計3回目 | GV1: 3回目補助者人数 | GW1: 3回目謝金合計 | GX1: 事業内容3回目 | GY1: 謝金 | GZ1: 旅費 | HA1: 講演等 諸雑費 | HB1: 合計 | HC1: 過疎 | HD1: 山村 | HE1: 離島 | HF1: 半島 | HG1: 奄美／ 小笠原 | HH1: 備考
H2: 1 | J2: ○○市立文化小学校 | K2: ○○しりつ ぶんか しょうがっこう | L2: 300 | M2: *** | N2: **** | O2: 北海道 | P2: ○○市 △△ 1-1-1 | Q2: ◇◇ ◇◇ | R2: □□ □□ | S2: 00-0000-0000 | T2: 00-0000-1111 | U2: xxx@xxxx.xx.xx | V2: 実施校の教室・体育館 | W2: なし | X2: 音楽 | Y2: C 弦楽器 | AA2: 3 | AB2: 芸術 花子 | AC2: げいじゅつ はなこ | AD2: ●●室内管弦楽団 | AE2: 卒業生 | AG2: 登録済み | AH2: 2 | AI2: 4 | AJ2: 確認済み | AK2: 希望する講師が芸術分野以外にも申請校が求める専門スキルを所有しており他の講師での実施が困難（福祉現場での活動経験が豊富等） | AL2: 本校では毎年、芸術文化の鑑賞や活動体験を通して、子供たちの豊かな情操を育み、芸術に親しむ感性を養うことを目的として芸術家の派遣事業を活用している。本校の児童の特性として、発達に困難を抱えた児童が多く、毎年異なる講師を迎えることは、子供たちへ不安や緊張といったストレスをかける要因となり、本来の目的達成に支障が生じてしまう。本校が希望する○○先生は本校の児童の特性に深く理解があり、教員側・保護者側からも安心して実施をお任せできることから、令和4年度も継続して○○先生を講師に迎えることを希望する。 | AM2: 2022-06-10 | AN2: 午前 | AO2: 90 | AP2: 有 | AQ2: 北海道 | AR2: ◎◎市立芸術中学校 | AS2: 教科 | AT2: 音楽 | AU2: 許諾が必要 | AV2: 許諾取得済み | AW2: 100 | AX2: 学年単位 | AY2: 5，6年生 | AZ2: 次代 太郎 | BA2: 1 | BB2: 1 | BD2: 11720 | BE2: 音楽 花子 | BF2: 1 | BG2: 1 | BI2: 11720 | BJ2: 演奏 太郎 | BK2: 1 | BL2: 1 | BN2: 11720 | BS2: 0 | BX2: 0 | CC2: 0 | CH2: 0 | CM2: 0 | CN2: 3 | CO2: 35160 | CP2: ○○○○○○○○○○○○○○○○○○○○○○○○○○○○○○○○○○○○○○○○○○○○○○○○○○○○○○○○○○○○○○○○○○○○○○○○○○○○○○○○○○○○○○○○○○○○○○○○○○○○○○○○○○○○○○○○○○○○○○○○○○○○○○○○○○○○○○○○○○○○○○○○○○○○○○○○○○○○○○○○○○○○○○○○○○○○ | CQ2: 2022-06-17 | CR2: 午後 | CS2: 150 | CT2: 無 | CW2: 総合的な学習の時間 | CY2: 許諾は不要 | DA2: 100 | DB2: 学年単位 | DC2: 5，6年生 | DD2: 次代 太郎 | DE2: 2 | DF2: 1 | DH2: 18240 | DI2: 音楽 花子 | DJ2: 2 | DK2: 1 | DM2: 18240 | DN2: 演奏 太郎 | DO2: 2 | DP2: 1 | DR2: 18240 | DW2: 0 | EB2: 0 | EG2: 0 | EL2: 0 | EQ2: 0 | ER2: 3 | ES2: 54720 | ET2: ○○○○○○○○○○○○○○○○○○○○○○○○○○○○○○○○○○○○○○○○○○○○○○○○○○○○○○○○○○○○○○○○○○○○○○○○○○○○○○○○○○○○○○○○○○○○○○○○○○○○○○○○○○○○○○○○○○○○○○○○○○○○○○○○○○○○○○○○○○○○○○○○○○○○○○○○○○○○○○○○○○○○○○○○○○○○ | EU2: 2022-06-23 | EV2: 午前と午後 | EW2: 150 | EX2: 無 | FA2: 特別活動 | FB2: 文化的行事 | FC2: 許諾が必要 | FD2: 許諾未取得 | FE2: 300 | FF2: 全校児童/生徒 | FH2: 次代 太郎 | FI2: 2 | FJ2: 1 | FL2: 18240 | FM2: 音楽 花子 | FN2: 2 | FQ2: 13040 | FR2: 演奏 太郎 | FS2: 2 | FV2: 13040 | FW2: 弦楽 花子 | FX2: 2 | GA2: 13040 | GB2: 鍵盤 太郎 | GC2: 2 | GF2: 13040 | GK2: 0 | GP2: 0 | GU2: 0 | GV2: 5 | GW2: 70400 | GX2: ○○○○○○○○○○○○○○○○○○○○○○○○○○○○○○○○○○○○○○○○○○○○○○○○○○○○○○○○○○○○○○○○○○○○○○○○○○○○○○○○○○○○○○○○○○○○○○○○○○○○○○○○○○○○○○○○○○○○○○○○○○○○○○○○○○○○○○○○○○○○○○○○○○○○○○○○○○○○○○○○○○○○○○○○○○○○ | GY2: 267230 | GZ2: 65590 | HA2: 48700 | HB2: 381520
H3: 2 | J3: △△市立△△小学校 | K3: ○○しりつ ぶんか しょうがっこう | L3: 300 | M3: *** | N3: **** | O3: 北海道 | P3: ○○市 △△ 1-1-1 | Q3: ◇◇ ◇◇ | R3: □□ □□ | S3: 00-0000-0000 | T3: 00-0000-1111 | U3: xxx@xxxx.xx.xx | V3: 実施校の教室・体育館 | W3: なし | X3: 音楽 | Y3: D パーカッション | AA3: 1 | AB3: ◎◎ ◎◎ | AC3: げいじゅつ はなこ | AD3: ●●室内管弦楽団 | AE3: 卒業生 | AG3: 登録済み | AH3: 2 | AI3: 4 | AJ3: 確認済み | AK3: 希望する講師が芸術分野以外にも申請校が求める専門スキルを所有しており他の講師での実施が困難（福祉現場での活動経験が豊富等） | AL3: 本校では毎年、芸術文化の鑑賞や活動体験を通して、子供たちの豊かな情操を育み、芸術に親しむ感性を養うことを目的として芸術家の派遣事業を活用している。本校の児童の特性として、発達に困難を抱えた児童が多く、毎年異なる講師を迎えることは、子供たちへ不安や緊張といったストレスをかける要因となり、本来の目的達成に支障が生じてしまう。本校が希望する○○先生は本校の児童の特性に深く理解があり、教員側・保護者側からも安心して実施をお任せできることから、令和4年度も継続して○○先生を講師に迎えることを希望する。 | AM3: 2022-07-01 | AN3: 午前 | AO3: 90 | AP3: 有 | AQ3: 北海道 | AR3: ◎◎市立芸術中学校 | AS3: 教科 | AT3: 音楽 | AU3: 許諾が必要 | AV3: 許諾取得済み | AW3: 100 | AX3: 学年単位 | AY3: 5，6年生 | AZ3: 次代 太郎 | BA3: 3 | BD3: 19560 | BE3: 音楽 花子 | BF3: 3 | BI3: 19560 | BJ3: 演奏 太郎 | BK3: 3 | BN3: 19560 | BO3: ああ ああ | BP3: 3 | BS3: 19560 | BT3: いい いい | BU3: 3 | BX3: 19560 | CC3: 0 | CH3: 0 | CM3: 0 | CN3: 5 | CO3: 97800 | CP3: ○○○○○○○○○○○○○○○○○○○○○○○○○○○○○○○○○○○○○○○○○○○○○○○○○○○○○○○○○○○○○○○○○○○○○○○○○○○○○○○○○○○○○○○○○○○○○○○○○○○○○○○○○○○○○○○○○○○○○○○○○○○○○○○○○○○○○○○○○○○○○○○○○○○○○○○○○○○○○○○○○○○○○○○○○○○○ | DH3: 0 | DM3: 0 | DR3: 0 | DW3: 0 | EB3: 0 | EG3: 0 | EL3: 0 | EQ3: 0 | ER3: 0 | ES3: 0 | ET3: ○○○○○○○○○○○○○○○○○○○○○○○○○○○○○○○○○○○○○○○○○○○○○○○○○○○○○○○○○○○○○○○○○○○○○○○○○○○○○○○○○○○○○○○○○○○○○○○○○○○○○○○○○○○○○○○○○○○○○○○○○○○○○○○○○○○○○○○○○○○○○○○○○○○○○○○○○○○○○○○○○○○○○○○○○○○○ | FL3: 0 | FQ3: 0 | FV3: 0 | GA3: 0 | GF3: 0 | GK3: 0 | GP3: 0 | GU3: 0 | GV3: 0 | GW3: 0 | GX3: ○○○○○○○○○○○○○○○○○○○○○○○○○○○○○○○○○○○○○○○○○○○○○○○○○○○○○○○○○○○○○○○○○○○○○○○○○○○○○○○○○○○○○○○○○○○○○○○○○○○○○○○○○○○○○○○○○○○○○○○○○○○○○○○○○○○○○○○○○○○○○○○○○○○○○○○○○○○○○○○○○○○○○○○○○○○○ | GY3: 133450 | GZ3: 3000 | HA3: 27600 | HB3: 164050
H4: 3 | J4: △△市立△△中学校 | K4: ○○しりつ ぶんか しょうがっこう | L4: 300 | M4: *** | N4: **** | O4: 北海道 | P4: ○○市 △△ 1-1-1 | Q4: ◇◇ ◇◇ | R4: □□ □□ | S4: 00-0000-0000 | T4: 00-0000-1111 | U4: xxx@xxxx.xx.xx | V4: 実施校の教室・体育館 | W4: なし | X4: 文学 | Y4: A 俳句 | AA4: 3 | AB4: □□ □□ | AC4: げいじゅつ はなこ | AD4: ●●室内管弦楽団 | AE4: 卒業生 | AG4: 登録済み | AH4: 2 | AI4: 4 | AJ4: 確認済み | AK4: 希望する講師が芸術分野以外にも申請校が求める専門スキルを所有しており他の講師での実施が困難（福祉現場での活動経験が豊富等） | AL4: 本校では毎年、芸術文化の鑑賞や活動体験を通して、子供たちの豊かな情操を育み、芸術に親しむ感性を養うことを目的として芸術家の派遣事業を活用している。本校の児童の特性として、発達に困難を抱えた児童が多く、毎年異なる講師を迎えることは、子供たちへ不安や緊張といったストレスをかける要因となり、本来の目的達成に支障が生じてしまう。本校が希望する○○先生は本校の児童の特性に深く理解があり、教員側・保護者側からも安心して実施をお任せできることから、令和4年度も継続して○○先生を講師に迎えることを希望する。 | AM4: 2022-06-03 | AN4: 午前 | AO4: 90 | AP4: 有 | AQ4: 北海道 | AR4: ◎◎市立芸術中学校 | AS4: 教科 | AT4: 音楽 | AU4: 許諾が必要 | AV4: 許諾取得済み | AW4: 100 | AX4: 学年単位 | AY4: 5，6年生 | AZ4: 次代 太郎 | BA4: 1 | BB4: 1 | BD4: 11720 | BE4: 音楽 花子 | BF4: 1 | BG4: 1 | BI4: 11720 | BN4: 0 | BS4: 0 | BX4: 0 | CC4: 0 | CH4: 0 | CM4: 0 | CN4: 2 | CO4: 23440 | CP4: ○○○○○○○○○○○○○○○○○○○○○○○○○○○○○○○○○○○○○○○○○○○○○○○○○○○○○○○○○○○○○○○○○○○○○○○○○○○○○○○○○○○○○○○○○○○○○○○○○○○○○○○○○○○○○○○○○○○○○○○○○○○○○○○○○○○○○○○○○○○○○○○○○○○○○○○○○○○○○○○○○○○○○○○○○○○○ | CQ4: 2022-06-12 | CR4: 午後 | CS4: 150 | CT4: 無 | CW4: 総合的な学習の時間 | CY4: 許諾は不要 | DA4: 100 | DB4: 学年単位 | DC4: 5，6年生 | DD4: 次代 太郎 | DE4: 2 | DF4: 1 | DH4: 18240 | DM4: 0 | DR4: 0 | DW4: 0 | EB4: 0 | EG4: 0 | EL4: 0 | EQ4: 0 | ER4: 1 | ES4: 18240 | ET4: ○○○○○○○○○○○○○○○○○○○○○○○○○○○○○○○○○○○○○○○○○○○○○○○○○○○○○○○○○○○○○○○○○○○○○○○○○○○○○○○○○○○○○○○○○○○○○○○○○○○○○○○○○○○○○○○○○○○○○○○○○○○○○○○○○○○○○○○○○○○○○○○○○○○○○○○○○○○○○○○○○○○○○○○○○○○○ | EU4: 2022-07-14 | EV4: 午前と午後 | EW4: 150 | EX4: 無 | FA4: 特別活動 | FB4: 文化的行事 | FC4: 許諾が必要 | FD4: 許諾未取得 | FE4: 300 | FF4: 全校児童/生徒 | FH4: 次代 太郎 | FI4: 2 | FJ4: 1 | FL4: 18240 | FQ4: 0 | FV4: 0 | GA4: 0 | GF4: 0 | GK4: 0 | GP4: 0 | GU4: 0 | GV4: 1 | GW4: 18240 | GX4: ○○○○○○○○○○○○○○○○○○○○○○○○○○○○○○○○○○○○○○○○○○○○○○○○○○○○○○○○○○○○○○○○○○○○○○○○○○○○○○○○○○○○○○○○○○○○○○○○○○○○○○○○○○○○○○○○○○○○○○○○○○○○○○○○○○○○○○○○○○○○○○○○○○○○○○○○○○○○○○○○○○○○○○○○○○○○ | GY4: 166870 | GZ4: 6250 | HA4: 30000 | HB4: 203120
H5: 4 | J5: ○○市立○○中学校 | K5: ○○しりつ ぶんか しょうがっこう | L5: 300 | M5: *** | N5: **** | O5: 北海道 | P5: ○○市 △△ 1-1-1 | Q5: ◇◇ ◇◇ | R5: □□ □□ | S5: 00-0000-0000 | T5: 00-0000-1111 | U5: xxx@xxxx.xx.xx | V5: 実施校の教室・体育館 | W5: なし | X5: メディア芸術 | Y5: A メディアアート | AA5: 2 | AB5: ◇◇ ◇◇ | AC5: げいじゅつ はなこ | AD5: ●●室内管弦楽団 | AE5: 卒業生 | AG5: 登録済み | AH5: 2 | AI5: 4 | AJ5: 確認済み | AK5: 希望する講師が芸術分野以外にも申請校が求める専門スキルを所有しており他の講師での実施が困難（福祉現場での活動経験が豊富等） | AL5: 本校では毎年、芸術文化の鑑賞や活動体験を通して、子供たちの豊かな情操を育み、芸術に親しむ感性を養うことを目的として芸術家の派遣事業を活用している。本校の児童の特性として、発達に困難を抱えた児童が多く、毎年異なる講師を迎えることは、子供たちへ不安や緊張といったストレスをかける要因となり、本来の目的達成に支障が生じてしまう。本校が希望する○○先生は本校の児童の特性に深く理解があり、教員側・保護者側からも安心して実施をお任せできることから、令和4年度も継続して○○先生を講師に迎えることを希望する。 | AM5: 2022-06-10 | AN5: 午前 | AO5: 90 | AP5: 有 | AQ5: 北海道 | AR5: ◎◎市立芸術中学校 | AS5: 教科 | AT5: 音楽 | AU5: 許諾が必要 | AV5: 許諾取得済み | AW5: 100 | AX5: 学年単位 | AY5: 5，6年生 | AZ5: 次代 太郎 | BB5: 2 | BD5: 10400 | BI5: 0 | BN5: 0 | BS5: 0 | BX5: 0 | CC5: 0 | CH5: 0 | CM5: 0 | CN5: 1 | CO5: 10400 | CP5: ○○○○○○○○○○○○○○○○○○○○○○○○○○○○○○○○○○○○○○○○○○○○○○○○○○○○○○○○○○○○○○○○○○○○○○○○○○○○○○○○○○○○○○○○○○○○○○○○○○○○○○○○○○○○○○○○○○○○○○○○○○○○○○○○○○○○○○○○○○○○○○○○○○○○○○○○○○○○○○○○○○○○○○○○○○○○ | CQ5: 2022-06-17 | CR5: 午後 | CS5: 150 | CT5: 無 | CW5: 総合的な学習の時間 | CY5: 許諾は不要 | DA5: 100 | DB5: 学年単位 | DC5: 5，6年生 | DD5: 次代 太郎 | DF5: 3 | DH5: 15600 | DI5: メディア 花子 | DK5: 3 | DM5: 15600 | DR5: 0 | DW5: 0 | EB5: 0 | EG5: 0 | EL5: 0 | EQ5: 0 | ER5: 2 | ES5: 31200 | ET5: ○○○○○○○○○○○○○○○○○○○○○○○○○○○○○○○○○○○○○○○○○○○○○○○○○○○○○○○○○○○○○○○○○○○○○○○○○○○○○○○○○○○○○○○○○○○○○○○○○○○○○○○○○○○○○○○○○○○○○○○○○○○○○○○○○○○○○○○○○○○○○○○○○○○○○○○○○○○○○○○○○○○○○○○○○○○○ | EX5: 無 | FD5: 許諾未取得 | FL5: 0 | FQ5: 0 | FV5: 0 | FW5: 弦楽 花子 | GA5: 0 | GB5: 鍵盤 太郎 | GF5: 0 | GK5: 0 | GP5: 0 | GU5: 0 | GV5: 2 | GW5: 0 | GY5: 97300 | GZ5: 65590 | HA5: 48700 | HB5: 211590
H6: 5 | J6: ○○県立○○高等学校 | K6: ○○しりつ ぶんか しょうがっこう | L6: 300 | M6: *** | N6: **** | O6: 北海道 | P6: ○○市 △△ 1-1-1 | Q6: ◇◇ ◇◇ | R6: □□ □□ | S6: 00-0000-0000 | T6: 00-0000-1111 | U6: xxx@xxxx.xx.xx | V6: 実施校の教室・体育館 | W6: なし | X6: 音楽 | Y6: C 弦楽器 | AA6: 3 | AB6: 芸術 花子 | AC6: げいじゅつ はなこ | AD6: ●●室内管弦楽団 | AE6: 卒業生 | AG6: 登録済み | AH6: 2 | AI6: 4 | AJ6: 確認済み | AK6: 希望する講師が芸術分野以外にも申請校が求める専門スキルを所有しており他の講師での実施が困難（福祉現場での活動経験が豊富等） | AL6: 本校では毎年、芸術文化の鑑賞や活動体験を通して、子供たちの豊かな情操を育み、芸術に親しむ感性を養うことを目的として芸術家の派遣事業を活用している。本校の児童の特性として、発達に困難を抱えた児童が多く、毎年異なる講師を迎えることは、子供たちへ不安や緊張といったストレスをかける要因となり、本来の目的達成に支障が生じてしまう。本校が希望する○○先生は本校の児童の特性に深く理解があり、教員側・保護者側からも安心して実施をお任せできることから、令和4年度も継続して○○先生を講師に迎えることを希望する。 | AM6: 2022-10-02 | AN6: 午前 | AO6: 90 | AP6: 有 | AQ6: 北海道 | AR6: ◎◎市立芸術中学校 | AS6: 教科 | AT6: 音楽 | AU6: 許諾が必要 | AV6: 許諾取得済み | AW6: 100 | AX6: 学年単位 | AY6: 5，6年生 | BD6: 0 | BI6: 0 | BN6: 0 | BS6: 0 | BX6: 0 | CC6: 0 | CH6: 0 | CM6: 0 | CN6: 0 | CO6: 0 | CP6: ○○○○○○○○○○○○○○○○○○○○○○○○○○○○○○○○○○○○○○○○○○○○○○○○○○○○○○○○○○○○○○○○○○○○○○○○○○○○○○○○○○○○○○○○○○○○○○○○○○○○○○○○○○○○○○○○○○○○○○○○○○○○○○○○○○○○○○○○○○○○○○○○○○○○○○○○○○○○○○○○○○○○○○○○○○○○ | CQ6: 2022-11-11 | CR6: 午後 | CS6: 150 | CT6: 無 | CW6: 総合的な学習の時間 | CY6: 許諾は不要 | DA6: 100 | DB6: 学年単位 | DC6: 5，6年生 | DH6: 0 | DM6: 0 | DR6: 0 | DW6: 0 | EB6: 0 | EG6: 0 | EL6: 0 | EQ6: 0 | ER6: 0 | ES6: 0 | ET6: ○○○○○○○○○○○○○○○○○○○○○○○○○○○○○○○○○○○○○○○○○○○○○○○○○○○○○○○○○○○○○○○○○○○○○○○○○○○○○○○○○○○○○○○○○○○○○○○○○○○○○○○○○○○○○○○○○○○○○○○○○○○○○○○○○○○○○○○○○○○○○○○○○○○○○○○○○○○○○○○○○○○○○○○○○○○○ | EU6: 2022-12-04 | EV6: 午前と午後 | EW6: 150 | EX6: 無 | FA6: 特別活動 | FB6: 文化的行事 | FC6: 許諾が必要 | FD6: 許諾未取得 | FE6: 300 | FF6: 全校児童/生徒 | FL6: 0 | FQ6: 0 | FV6: 0 | GA6: 0 | GF6: 0 | GK6: 0 | GP6: 0 | GU6: 0 | GV6: 0 | GW6: 0 | GX6: ○○○○○○○○○○○○○○○○○○○○○○○○○○○○○○○○○○○○○○○○○○○○○○○○○○○○○○○○○○○○○○○○○○○○○○○○○○○○○○○○○○○○○○○○○○○○○○○○○○○○○○○○○○○○○○○○○○○○○○○○○○○○○○○○○○○○○○○○○○○○○○○○○○○○○○○○○○○○○○○○○○○○○○○○○○○○ | GY6: 106950 | GZ6: 1500 | HA6: 48700 | HB6: 157150

Sheet Sheet1 (hidden)
A1: 実施希望校 | B1: 【様式２・３】実施希望調書!E7 | D1: 実施希望校 | E1: 【様式２・３】実施希望調書!E7 | G1: =EXACT(A1,D1) -> TRUE | J1: 【様式２・３】実施希望調書!E7
A2: 実施希望校ふりがな | B2: 【様式２・３】実施希望調書!E6 | D2: 実施希望校ふりがな | E2: 【様式２・３】実施希望調書!E6 | G2: =EXACT(A2,D2) -> TRUE | J2: 【様式２・３】実施希望調書!E6
A3: 全校児童生徒 | B3: 【様式２・３】実施希望調書!W6 | D3: 全校児童生徒 | E3: 【様式２・３】実施希望調書!W6 | G3: TRUE | J3: 【様式２・３】実施希望調書!W6
A4: 所在地郵便番号前 | B4: 【様式２・３】実施希望調書!F8 | D4: 所在地郵便番号前 | E4: 【様式２・３】実施希望調書!F8 | G4: TRUE | J4: 【様式２・３】実施希望調書!F8
A5: 実施校所在地郵便番号後 | B5: 【様式２・３】実施希望調書!J8 | D5: 実施校所在地郵便番号後 | E5: 【様式２・３】実施希望調書!J8 | G5: TRUE | J5: 【様式２・３】実施希望調書!J8
A6: 実施校所在地都道府県 | B6: 【様式２・３】実施希望調書!P8 | D6: 実施校所在地都道府県 | E6: 【様式２・３】実施希望調書!P8 | G6: TRUE | J6: 【様式２・３】実施希望調書!P8
A7: 実施校所在地住所 | B7: 【様式２・３】実施希望調書!E9 | D7: 実施校所在地住所 | E7: 【様式２・３】実施希望調書!E9 | G7: TRUE | J7: 【様式２・３】実施希望調書!E9
A8: 実施校学校長名 | B8: 【様式２・３】実施希望調書!W8 | D8: 実施校学校長名 | E8: 【様式２・３】実施希望調書!W8 | G8: TRUE | J8: 【様式２・３】実施希望調書!W8
A9: 実施校担当者名 | B9: 【様式２・３】実施希望調書!W9 | D9: 実施校担当者名 | E9: 【様式２・３】実施希望調書!W9 | G9: TRUE | J9: 【様式２・３】実施希望調書!W9
A10: 実施校TEL | B10: 【様式２・３】実施希望調書!W10 | D10: 実施校TEL | E10: 【様式２・３】実施希望調書!E10 | G10: TRUE | J10: 【様式２・３】実施希望調書!W10
A11: 実施校FAX | B11: 【様式２・３】実施希望調書!N10 | D11: 実施校FAX | E11: 【様式２・３】実施希望調書!N10 | G11: TRUE | J11: 【様式２・３】実施希望調書!N10
A12: 実施校メール | B12: 【様式２・３】実施希望調書!W11 | D12: 実施校メール | E12: 【様式２・３】実施希望調書!W10 | G12: TRUE | J12: 【様式２・３】実施希望調書!W11
A13: 実施会場 | B13: 【様式２・３】実施希望調書!E10 | D13: 実施会場 | E13: 【様式２・３】実施希望調書!E10 | G13: TRUE | J13: 【様式２・３】実施希望調書!E10
A14: 合同開催 | B14: 【様式２・３】実施希望調書!H11 | D14: 合同開催 | E14: 【様式２・３】実施希望調書!H11 | G14: TRUE | J14: 【様式２・３】実施希望調書!H11
A15: 実施分野大項目 | B15: 【様式２・３】実施希望調書!E13 | D15: 実施分野大項目 | E15: 【様式２・３】実施希望調書!E13 | G15: TRUE | J15: 【様式２・３】実施希望調書!E13
A16: 実施分野中項目 | B16: 【様式２・３】実施希望調書!I13 | D16: 実施分野中項目 | E16: 【様式２・３】実施希望調書!I13 | G16: TRUE | J16: 【様式２・３】実施希望調書!I13
A17: 実施分野補足 | B17: 【様式２・３】実施希望調書!M13 | D17: 実施分野補足 | E17: 【様式２・３】実施希望調書!M13 | G17: TRUE | J17: 【様式２・３】実施希望調書!M13
A18: 実施 回数 | B18: 【様式２・３】実施希望調書!F14 | D18: 実施 回数 | E18: 【様式２・３】実施希望調書!F14 | G18: TRUE | J18: 【様式２・３】実施希望調書!F14
A19: 講師氏名 | B19: 【様式２・３】実施希望調書!E16 | D19: 講師氏名 | E19: 【様式２・３】実施希望調書!E16 | G19: TRUE | J19: 【様式２・３】実施希望調書!E16
A20: 講師氏名ふりがな | B20: 【様式２・３】実施希望調書!E15 | D20: 講師氏名ふりがな | E20: 【様式２・３】実施希望調書!E15 | G20: TRUE | J20: 【様式２・３】実施希望調書!E15
A21: 所属団体 | B21: 【様式２・３】実施希望調書!W15 | D21: 所属団体 | E21: 【様式２・３】実施希望調書!W15 | G21: TRUE | J21: 【様式２・３】実施希望調書!W15
A22: 学校との関係 | B22: 【様式２・３】実施希望調書!E17 | D22: 学校との関係 | E22: 【様式２・３】実施希望調書!E17 | G22: TRUE | J22: 【様式２・３】実施希望調書!E17
A23: 学校との関係その他 | B23: 【様式２・３】実施希望調書!S17 | D23: 学校との関係その他 | E23: 【様式２・３】実施希望調書!S17 | G23: TRUE | J23: 【様式２・３】実施希望調書!S17
A24: 協力者名簿 | B24: 【様式２・３】実施希望調書!E18 | D24: 協力者名簿 | E24: 【様式２・３】実施希望調書!E18 | G24: TRUE | J24: 【様式２・３】実施希望調書!E18
A25: 連続実施年数同一講師 | B25: 【様式２・３】実施希望調書!U18 | D25: 連続実施年数同一講師 | E25: 【様式２・３】実施希望調書!U18 | G25: TRUE | J25: 【様式２・３】実施希望調書!U18
A26: 連続実施年数同一分野 | B26: 【様式２・３】実施希望調書!AA18 | D26: 連続実施年数同一分野 | E26: 【様式２・３】実施希望調書!AA18 | G26: TRUE | J26: 【様式２・３】実施希望調書!AA18
A27: 連続実施確認１ | B27: 【様式２・３】実施希望調書!AB20 | D27: 連続実施確認１ | E27: 【様式２・３】実施希望調書!AB20 | G27: TRUE | J27: 【様式２・３】実施希望調書!AB20
A28: 連続実施理由項目 | B28: 【様式２・３】実施希望調書!E22 | D28: 連続実施理由項目 | E28: 【様式２・３】実施希望調書!E22 | G28: TRUE | J28: 【様式２・３】実施希望調書!E22
A29: 連続実施理由詳細 | B29: 【様式２・３】実施希望調書!E24 | D29: 連続実施理由詳細 | E29: 【様式２・３】実施希望調書!E24 | G29: TRUE | J29: 【様式２・３】実施希望調書!E24
A30: 実施日第1回 | B30: 【様式２・３】実施希望調書!E25 | D30: 実施日第1回 | E30: 【様式２・３】実施希望調書!E25 | G30: TRUE | J30: 【様式２・３】実施希望調書!E25
A31: 実施時間1回目 | B31: 【様式２・３】実施希望調書!S25 | D31: 実施時間1回目 | E31: 【様式２・３】実施希望調書!S25 | G31: TRUE | J31: 【様式２・３】実施希望調書!S25
A32: 実施合計1回目 | B32: 【様式２・３】実施希望調書!AA25 | D32: 実施合計1回目 | E32: 【様式２・３】実施希望調書!AA25 | G32: TRUE | J32: 【様式２・３】実施希望調書!AA25
A33: 連続する実施1回目 | B33: 【様式２・３】実施希望調書!E26 | D33: 連続する実施1回目 | E33: 【様式２・３】実施希望調書!E26 | G33: TRUE | J33: 【様式２・３】実施希望調書!E26
A34: 連続都道府県1回目 | B34: 【様式２・３】実施希望調書!O26 | D34: 連続都道府県1回目 | E34: 【様式２・３】実施希望調書!O26 | G34: TRUE | J34: 【様式２・３】実施希望調書!O26
A35: 連続学校名1回目 | B35: 【様式２・３】実施希望調書!V26 | D35: 連続学校名1回目 | E35: 【様式２・３】実施希望調書!V26 | G35: TRUE | J35: 【様式２・３】実施希望調書!V26
A36: 教科の位置付け1回目 | B36: 【様式２・３】実施希望調書!E27 | D36: 教科の位置付け1回目 | E36: 【様式２・３】実施希望調書!E27 | G36: TRUE | J36: 【様式２・３】実施希望調書!E27
A37: 教科の位置付け詳細1回目 | B37: 【様式２・３】実施希望調書!S27 | D37: 教科の位置付け詳細1回目 | E37: 【様式２・３】実施希望調書!S27 | G37: TRUE | J37: 【様式２・３】実施希望調書!S27
A38: 著作権1回目 | B38: 【様式２・３】実施希望調書!E28 | D38: 著作権1回目 | E38: 【様式２・３】実施希望調書!E28 | G38: TRUE | J38: 【様式２・３】実施希望調書!E28
A39: 著作権許諾取得有無1回目 | B39: 【様式２・３】実施希望調書!V28 | D39: 著作権許諾取得有無1回目 | E39: 【様式２・３】実施希望調書!V28 | G39: TRUE | J39: 【様式２・３】実施希望調書!V28
A40: 参加児童生徒数1回目 | B40: 【様式２・３】実施希望調書!G29 | D40: 参加児童生徒数1回目 | E40: 【様式２・３】実施希望調書!G29 | G40: TRUE | J40: 【様式２・３】実施希望調書!G29
A41: 参加児童生徒単位1回目 | B41: 【様式２・３】実施希望調書!P29 | D41: 参加児童生徒単位1回目 | E41: 【様式２・３】実施希望調書!P29 | G41: TRUE | J41: 【様式２・３】実施希望調書!P29
A42: 参加児童生徒単位詳細1回目 | B42: 【様式２・３】実施希望調書!S30 | D42: 参加児童生徒単位詳細1回目 | E42: 【様式２・３】実施希望調書!S30 | G42: TRUE | J42: 【様式２・３】実施希望調書!S30
A43: 補助者①氏名1回目 | B43: 【様式２・３】実施希望調書!F32 | D43: 補助者①氏名1回目 | E43: 【様式２・３】実施希望調書!F32 | G43: TRUE | J43: 【様式２・３】実施希望調書!F32
A44: 補助者①演奏時間1回目 | B44: 【様式２・３】実施希望調書!N32 | D44: 補助者①演奏時間1回目 | E44: 【様式２・３】実施希望調書!N32 | G44: TRUE | J44: 【様式２・３】実施希望調書!N32
A45: 補助者①実技時間1回目 | B45: 【様式２・３】実施希望調書!S32 | D45: 補助者①実技時間1回目 | E45: 【様式２・３】実施希望調書!S32 | G45: TRUE | J45: 【様式２・３】実施希望調書!S32
A46: 補助者①単労時間1回目 | B46: 【様式２・３】実施希望調書!X32 | D46: 補助者①単労時間1回目 | E46: 【様式２・３】実施希望調書!X32 | G46: TRUE | J46: 【様式２・３】実施希望調書!X32
A47: 補助者①謝金合計1回目 | B47: 【様式２・３】実施希望調書!AA32 | D47: 補助者①謝金合計1回目 | E47: 【様式２・３】実施希望調書!AA32 | G47: TRUE | J47: 【様式２・３】実施希望調書!AA32
A48: 補助者②氏名1回目 | B48: 【様式２・３】実施希望調書!F33 | D48: 補助者②氏名1回目 | E48: 【様式２・３】実施希望調書!F33 | G48: TRUE | J48: 【様式２・３】実施希望調書!F33
A49: 補助者②演奏時間1回目 | B49: 【様式２・３】実施希望調書!N33 | D49: 補助者②演奏時間1回目 | E49: 【様式２・３】実施希望調書!N33 | G49: TRUE | J49: 【様式２・３】実施希望調書!N33
A50: 補助者②実技時間1回目 | B50: 【様式２・３】実施希望調書!S33 | D50: 補助者②実技時間1回目 | E50: 【様式２・３】実施希望調書!S33 | G50: TRUE | J50: 【様式２・３】実施希望調書!S33
A51: 補助者②単労時間1回目 | B51: 【様式２・３】実施希望調書!X33 | D51: 補助者②単労時間1回目 | E51: 【様式２・３】実施希望調書!X33 | G51: TRUE | J51: 【様式２・３】実施希望調書!X33
A52: 補助者②謝金合計1回目 | B52: 【様式２・３】実施希望調書!AA33 | D52: 補助者②謝金合計1回目 | E52: 【様式２・３】実施希望調書!AA33 | G52: TRUE | J52: 【様式２・３】実施希望調書!AA33
A53: 補助者③氏名1回目 | B53: 【様式２・３】実施希望調書!F34 | D53: 補助者③氏名1回目 | E53: 【様式２・３】実施希望調書!F34 | G53: TRUE | J53: 【様式２・３】実施希望調書!F34
A54: 補助者③演奏時間1回目 | B54: 【様式２・３】実施希望調書!N34 | D54: 補助者③演奏時間1回目 | E54: 【様式２・３】実施希望調書!N34 | G54: TRUE | J54: 【様式２・３】実施希望調書!N34
A55: 補助者③実技時間1回目 | B55: 【様式２・３】実施希望調書!S34 | D55: 補助者③実技時間1回目 | E55: 【様式２・３】実施希望調書!S34 | G55: TRUE | J55: 【様式２・３】実施希望調書!S34
A56: 補助者③単労時間1回目 | B56: 【様式２・３】実施希望調書!X34 | D56: 補助者③単労時間1回目 | E56: 【様式２・３】実施希望調書!X34 | G56: TRUE | J56: 【様式２・３】実施希望調書!X34
A57: 補助者③謝金合計1回目 | B57: 【様式２・３】実施希望調書!AA34 | D57: 補助者③謝金合計1回目 | E57: 【様式２・３】実施希望調書!AA34 | G57: TRUE | J57: 【様式２・３】実施希望調書!AA34
A58: 補助者④氏名1回目 | B58: 【様式２・３】実施希望調書!F35 | D58: 補助者④氏名1回目 | E58: 【様式２・３】実施希望調書!F35 | G58: TRUE | J58: 【様式２・３】実施希望調書!F35
A59: 補助者④演奏時間1回目 | B59: 【様式２・３】実施希望調書!N35 | D59: 補助者④演奏時間1回目 | E59: 【様式２・３】実施希望調書!N35 | G59: TRUE | J59: 【様式２・３】実施希望調書!N35
A60: 補助者④実技時間1回目 | B60: 【様式２・３】実施希望調書!S35 | D60: 補助者④実技時間1回目 | E60: 【様式２・３】実施希望調書!S35 | G60: TRUE | J60: 【様式２・３】実施希望調書!S35
A61: 補助者④単労時間1回目 | B61: 【様式２・３】実施希望調書!X35 | D61: 補助者④単労時間1回目 | E61: 【様式２・３】実施希望調書!X35 | G61: TRUE | J61: 【様式２・３】実施希望調書!X35
A62: 補助者④謝金合計1回目 | B62: 【様式２・３】実施希望調書!AA35 | D62: 補助者④謝金合計1回目 | E62: 【様式２・３】実施希望調書!AA35 | G62: TRUE | J62: 【様式２・３】実施希望調書!AA35
A63: 補助者⑤氏名1回目 | B63: 【様式２・３】実施希望調書!F36 | D63: 補助者⑤氏名1回目 | E63: 【様式２・３】実施希望調書!F36 | G63: TRUE | J63: 【様式２・３】実施希望調書!F36
A64: 補助者⑤演奏時間1回目 | B64: 【様式２・３】実施希望調書!N36 | D64: 補助者⑤演奏時間1回目 | E64: 【様式２・３】実施希望調書!N36 | G64: TRUE | J64: 【様式２・３】実施希望調書!N36
A65: 補助者⑤実技時間1回目 | B65: 【様式２・３】実施希望調書!S36 | D65: 補助者⑤実技時間1回目 | E65: 【様式２・３】実施希望調書!S36 | G65: TRUE | J65: 【様式２・３】実施希望調書!S36
A66: 補助者⑤単労時間1回目 | B66: 【様式２・３】実施希望調書!X36 | D66: 補助者⑤単労時間1回目 | E66: 【様式２・３】実施希望調書!X36 | G66: =EXACT(A66,D66) -> TRUE | J66: 【様式２・３】実施希望調書!X36
A67: 補助者⑤謝金合計1回目 | B67: 【様式２・３】実施希望調書!AA36 | D67: 補助者⑤謝金合計1回目 | E67: 【様式２・３】実施希望調書!AA36 | G67: TRUE | J67: 【様式２・３】実施希望調書!AA36
A68: 補助者⑥氏名1回目 | B68: 【様式２・３】実施希望調書!F37 | D68: 補助者⑥氏名1回目 | E68: 【様式２・３】実施希望調書!F37 | G68: TRUE | J68: 【様式２・３】実施希望調書!F37
A69: 補助者⑥演奏時間1回目 | B69: 【様式２・３】実施希望調書!N37 | D69: 補助者⑥演奏時間1回目 | E69: 【様式２・３】実施希望調書!N37 | G69: TRUE | J69: 【様式２・３】実施希望調書!N37
A70: 補助者⑥実技時間1回目 | B70: 【様式２・３】実施希望調書!S37 | D70: 補助者⑥実技時間1回目 | E70: 【様式２・３】実施希望調書!S37 | G70: TRUE | J70: 【様式２・３】実施希望調書!S37
A71: 補助者⑥単労時間1回目 | B71: 【様式２・３】実施希望調書!X37 | D71: 補助者⑥単労時間1回目 | E71: 【様式２・３】実施希望調書!X37 | G71: TRUE | J71: 【様式２・３】実施希望調書!X37
A72: 補助者⑥謝金合計1回目 | B72: 【様式２・３】実施希望調書!AA37 | D72: 補助者⑥謝金合計1回目 | E72: 【様式２・３】実施希望調書!AA37 | G72: TRUE | J72: 【様式２・３】実施希望調書!AA37
A73: 補助者⑦氏名1回目 | B73: 【様式２・３】実施希望調書!F38 | D73: 補助者⑦氏名1回目 | E73: 【様式２・３】実施希望調書!F38 | G73: TRUE | J73: 【様式２・３】実施希望調書!F38
A74: 補助者⑦演奏時間1回目 | B74: 【様式２・３】実施希望調書!N38 | D74: 補助者⑦演奏時間1回目 | E74: 【様式２・３】実施希望調書!N38 | G74: TRUE | J74: 【様式２・３】実施希望調書!N38
A75: 補助者⑦実技時間1回目 | B75: 【様式２・３】実施希望調書!S38 | D75: 補助者⑦実技時間1回目 | E75: 【様式２・３】実施希望調書!S38 | G75: TRUE | J75: 【様式２・３】実施希望調書!S38
A76: 補助者⑦単労時間1回目 | B76: 【様式２・３】実施希望調書!X38 | D76: 補助者⑦単労時間1回目 | E76: 【様式２・３】実施希望調書!X38 | G76: TRUE | J76: 【様式２・３】実施希望調書!X38
A77: 補助者⑦謝金合計1回目 | B77: 【様式２・３】実施希望調書!AA38 | D77: 補助者⑦謝金合計1回目 | E77: 【様式２・３】実施希望調書!AA38 | G77: TRUE | J77: 【様式２・３】実施希望調書!AA38
A78: 補助者⑧氏名1回目 | B78: 【様式２・３】実施希望調書!F39 | D78: 補助者⑧氏名1回目 | E78: 【様式２・３】実施希望調書!F39 | G78: TRUE | J78: 【様式２・３】実施希望調書!F39
A79: 補助者⑧演奏時間1回目 | B79: 【様式２・３】実施希望調書!N39 | D79: 補助者⑧演奏時間1回目 | E79: 【様式２・３】実施希望調書!N39 | G79: TRUE | J79: 【様式２・３】実施希望調書!N39
A80: 補助者⑧実技時間1回目 | B80: 【様式２・３】実施希望調書!S39 | D80: 補助者⑧実技時間1回目 | E80: 【様式２・３】実施希望調書!S39 | G80: TRUE | J80: 【様式２・３】実施希望調書!S39
A81: 補助者⑧単労時間1回目 | B81: 【様式２・３】実施希望調書!X39 | D81: 補助者⑧単労時間1回目 | E81: 【様式２・３】実施希望調書!X39 | G81: TRUE | J81: 【様式２・３】実施希望調書!X39
A82: 補助者⑧謝金合計1回目 | B82: 【様式２・３】実施希望調書!AA39 | D82: 補助者⑧謝金合計1回目 | E82: 【様式２・３】実施希望調書!AA39 | G82: TRUE | J82: 【様式２・３】実施希望調書!AA39
A83: 1回目補助者人数 | B83: 【様式２・３】実施希望調書!F40 | D83: 1回目補助者人数 | E83: 【様式２・３】実施希望調書!F40 | G83: TRUE | J83: 【様式２・３】実施希望調書!F40
A84: 1回目謝金合計 | B84: 【様式２・３】実施希望調書!AA40 | D84: 1回目謝金合計 | E84: 【様式２・３】実施希望調書!AA40 | G84: TRUE | J84: 【様式２・３】実施希望調書!AA40
A85: 事業内容1回目 | B85: 【様式２・３】実施希望調書!B42 | D85: 事業内容1回目 | E85: 【様式２・３】実施希望調書!B42 | G85: TRUE | J85: 【様式２・３】実施希望調書!B42
A86: 実施日第2回 | B86: 【様式２・３】実施希望調書!E43 | D86: 実施日第2回 | E86: 【様式２・３】実施希望調書!E43 | G86: TRUE | J86: 【様式２・３】実施希望調書!E43
A87: 実施時間2回目 | B87: 【様式２・３】実施希望調書!S43 | D87: 実施時間2回目 | E87: 【様式２・３】実施希望調書!S43 | G87: TRUE | J87: 【様式２・３】実施希望調書!S43
A88: 実施合計2回目 | B88: 【様式２・３】実施希望調書!AA43 | D88: 実施合計2回目 | E88: 【様式２・３】実施希望調書!AA43 | G88: TRUE | J88: 【様式２・３】実施希望調書!AA43
A89: 連続する実施2回目 | B89: 【様式２・３】実施希望調書!E44 | D89: 連続する実施2回目 | E89: 【様式２・３】実施希望調書!E44 | G89: TRUE | J89: 【様式２・３】実施希望調書!E44
A90: 連続都道府県2回目 | B90: 【様式２・３】実施希望調書!O44 | D90: 連続都道府県2回目 | E90: 【様式２・３】実施希望調書!O44 | G90: TRUE | J90: 【様式２・３】実施希望調書!O44
A91: 連続学校名2回目 | B91: 【様式２・３】実施希望調書!V44 | D91: 連続学校名2回目 | E91: 【様式２・３】実施希望調書!V44 | G91: TRUE | J91: 【様式２・３】実施希望調書!V44
A92: 教科の位置付け2回目 | B92: 【様式２・３】実施希望調書!E45 | D92: 教科の位置付け2回目 | E92: 【様式２・３】実施希望調書!E45 | G92: TRUE | J92: 【様式２・３】実施希望調書!E45
A93: 教科の位置付け詳細2回目 | B93: 【様式２・３】実施希望調書!S45 | D93: 教科の位置付け詳細2回目 | E93: 【様式２・３】実施希望調書!S45 | G93: TRUE | J93: 【様式２・３】実施希望調書!S45
A94: 著作権2回目 | B94: 【様式２・３】実施希望調書!E46 | D94: 著作権2回目 | E94: 【様式２・３】実施希望調書!E46 | G94: TRUE | J94: 【様式２・３】実施希望調書!E46
A95: 著作権許諾取得有無2回目 | B95: 【様式２・３】実施希望調書!V46 | D95: 著作権許諾取得有無2回目 | E95: 【様式２・３】実施希望調書!V46 | G95: TRUE | J95: 【様式２・３】実施希望調書!V46
A96: 参加児童生徒数2回目 | B96: 【様式２・３】実施希望調書!G47 | D96: 参加児童生徒数2回目 | E96: 【様式２・３】実施希望調書!G47 | G96: TRUE | J96: 【様式２・３】実施希望調書!G47
A97: 参加児童生徒単位2回目 | B97: 【様式２・３】実施希望調書!P47 | D97: 参加児童生徒単位2回目 | E97: 【様式２・３】実施希望調書!P47 | G97: TRUE | J97: 【様式２・３】実施希望調書!P47
A98: 参加児童生徒単位詳細2回目 | B98: 【様式２・３】実施希望調書!S48 | D98: 参加児童生徒単位詳細2回目 | E98: 【様式２・３】実施希望調書!S48 | G98: TRUE | J98: 【様式２・３】実施希望調書!S48
A99: 補助者①氏名2回目 | B99: 【様式２・３】実施希望調書!F50 | D99: 補助者①氏名2回目 | E99: 【様式２・３】実施希望調書!F50 | G99: TRUE | J99: 【様式２・３】実施希望調書!F50
A100: 補助者①演奏時間2回目 | B100: 【様式２・３】実施希望調書!N50 | D100: 補助者①演奏時間2回目 | E100: 【様式２・３】実施希望調書!N50 | G100: TRUE | J100: 【様式２・３】実施希望調書!N50
A101: 補助者①実技時間2回目 | B101: 【様式２・３】実施希望調書!S50 | D101: 補助者①実技時間2回目 | E101: 【様式２・３】実施希望調書!S50 | G101: TRUE | J101: 【様式２・３】実施希望調書!S50
A102: 補助者①単労時間2回目 | B102: 【様式２・３】実施希望調書!X50 | D102: 補助者①単労時間2回目 | E102: 【様式２・３】実施希望調書!X50 | G102: TRUE | J102: 【様式２・３】実施希望調書!X50
A103: 補助者①謝金合計2回目 | B103: 【様式２・３】実施希望調書!AA50 | D103: 補助者①謝金合計2回目 | E103: 【様式２・３】実施希望調書!AA50 | G103: TRUE | J103: 【様式２・３】実施希望調書!AA50
A104: 補助者②氏名2回目 | B104: 【様式２・３】実施希望調書!F51 | D104: 補助者②氏名2回目 | E104: 【様式２・３】実施希望調書!F51 | G104: TRUE | J104: 【様式２・３】実施希望調書!F51
A105: 補助者②演奏時間2回目 | B105: 【様式２・３】実施希望調書!N51 | D105: 補助者②演奏時間2回目 | E105: 【様式２・３】実施希望調書!N51 | G105: TRUE | J105: 【様式２・３】実施希望調書!N51
A106: 補助者②実技時間2回目 | B106: 【様式２・３】実施希望調書!S51 | D106: 補助者②実技時間2回目 | E106: 【様式２・３】実施希望調書!S51 | G106: TRUE | J106: 【様式２・３】実施希望調書!S51
A107: 補助者②単労時間2回目 | B107: 【様式２・３】実施希望調書!X51 | D107: 補助者②単労時間2回目 | E107: 【様式２・３】実施希望調書!X51 | G107: TRUE | J107: 【様式２・３】実施希望調書!X51
A108: 補助者②謝金合計2回目 | B108: 【様式２・３】実施希望調書!AA51 | D108: 補助者②謝金合計2回目 | E108: 【様式２・３】実施希望調書!AA51 | G108: TRUE | J108: 【様式２・３】実施希望調書!AA51
A109: 補助者③氏名2回目 | B109: 【様式２・３】実施希望調書!F52 | D109: 補助者③氏名2回目 | E109: 【様式２・３】実施希望調書!F52 | G109: TRUE | J109: 【様式２・３】実施希望調書!F52
A110: 補助者③演奏時間2回目 | B110: 【様式２・３】実施希望調書!N52 | D110: 補助者③演奏時間2回目 | E110: 【様式２・３】実施希望調書!N52 | G110: TRUE | J110: 【様式２・３】実施希望調書!N52
A111: 補助者③実技時間2回目 | B111: 【様式２・３】実施希望調書!S52 | D111: 補助者③実技時間2回目 | E111: 【様式２・３】実施希望調書!S52 | G111: TRUE | J111: 【様式２・３】実施希望調書!S52
A112: 補助者③単労時間2回目 | B112: 【様式２・３】実施希望調書!X52 | D112: 補助者③単労時間2回目 | E112: 【様式２・３】実施希望調書!X52 | G112: TRUE | J112: 【様式２・３】実施希望調書!X52
A113: 補助者③謝金合計2回目 | B113: 【様式２・３】実施希望調書!AA52 | D113: 補助者③謝金合計2回目 | E113: 【様式２・３】実施希望調書!AA52 | G113: TRUE | J113: 【様式２・３】実施希望調書!AA52
A114: 補助者④氏名2回目 | B114: 【様式２・３】実施希望調書!F53 | D114: 補助者④氏名2回目 | E114: 【様式２・３】実施希望調書!F53 | G114: TRUE | J114: 【様式２・３】実施希望調書!F53
A115: 補助者④演奏時間2回目 | B115: 【様式２・３】実施希望調書!N53 | D115: 補助者④演奏時間2回目 | E115: 【様式２・３】実施希望調書!N53 | G115: TRUE | J115: 【様式２・３】実施希望調書!N53
A116: 補助者④実技時間2回目 | B116: 【様式２・３】実施希望調書!S53 | D116: 補助者④実技時間2回目 | E116: 【様式２・３】実施希望調書!S53 | G116: TRUE | J116: 【様式２・３】実施希望調書!S53
A117: 補助者④単労時間2回目 | B117: 【様式２・３】実施希望調書!X53 | D117: 補助者④単労時間2回目 | E117: 【様式２・３】実施希望調書!X53 | G117: TRUE | J117: 【様式２・３】実施希望調書!X53
A118: 補助者④謝金合計2回目 | B118: 【様式２・３】実施希望調書!AA53 | D118: 補助者④謝金合計2回目 | E118: 【様式２・３】実施希望調書!AA53 | G118: TRUE | J118: 【様式２・３】実施希望調書!AA53
A119: 補助者⑤氏名2回目 | B119: 【様式２・３】実施希望調書!F54 | D119: 補助者⑤氏名2回目 | E119: 【様式２・３】実施希望調書!F54 | G119: TRUE | J119: 【様式２・３】実施希望調書!F54
A120: 補助者⑤演奏時間2回目 | B120: 【様式２・３】実施希望調書!N54 | D120: 補助者⑤演奏時間2回目 | E120: 【様式２・３】実施希望調書!N54 | G120: TRUE | J120: 【様式２・３】実施希望調書!N54
A121: 補助者⑤実技時間2回目 | B121: 【様式２・３】実施希望調書!S54 | D121: 補助者⑤実技時間2回目 | E121: 【様式２・３】実施希望調書!S54 | G121: TRUE | J121: 【様式２・３】実施希望調書!S54
A122: 補助者⑤単労時間2回目 | B122: 【様式２・３】実施希望調書!X54 | D122: 補助者⑤単労時間2回目 | E122: 【様式２・３】実施希望調書!X54 | G122: TRUE | J122: 【様式２・３】実施希望調書!X54
A123: 補助者⑤謝金合計2回目 | B123: 【様式２・３】実施希望調書!AA54 | D123: 補助者⑤謝金合計2回目 | E123: 【様式２・３】実施希望調書!AA54 | G123: TRUE | J123: 【様式２・３】実施希望調書!AA54
A124: 補助者⑥氏名2回目 | B124: 【様式２・３】実施希望調書!F55 | D124: 補助者⑥氏名2回目 | E124: 【様式２・３】実施希望調書!F55 | G124: TRUE | J124: 【様式２・３】実施希望調書!F55
A125: 補助者⑥演奏時間2回目 | B125: 【様式２・３】実施希望調書!N55 | D125: 補助者⑥演奏時間2回目 | E125: 【様式２・３】実施希望調書!N55 | G125: TRUE | J125: 【様式２・３】実施希望調書!N55
A126: 補助者⑥実技時間2回目 | B126: 【様式２・３】実施希望調書!S55 | D126: 補助者⑥実技時間2回目 | E126: 【様式２・３】実施希望調書!S55 | G126: TRUE | J126: 【様式２・３】実施希望調書!S55
A127: 補助者⑥単労時間2回目 | B127: 【様式２・３】実施希望調書!X55 | D127: 補助者⑥単労時間2回目 | E127: 【様式２・３】実施希望調書!X55 | G127: TRUE | J127: 【様式２・３】実施希望調書!X55
A128: 補助者⑥謝金合計2回目 | B128: 【様式２・３】実施希望調書!AA55 | D128: 補助者⑥謝金合計2回目 | E128: 【様式２・３】実施希望調書!AA55 | G128: TRUE | J128: 【様式２・３】実施希望調書!AA55
A129: 補助者⑦氏名2回目 | B129: 【様式２・３】実施希望調書!F56 | D129: 補助者⑦氏名2回目 | E129: 【様式２・３】実施希望調書!F56 | G129: TRUE | J129: 【様式２・３】実施希望調書!F56
A130: 補助者⑦演奏時間2回目 | B130: 【様式２・３】実施希望調書!N56 | D130: 補助者⑦演奏時間2回目 | E130: 【様式２・３】実施希望調書!N56 | G130: =EXACT(A130,D130) -> TRUE | J130: 【様式２・３】実施希望調書!N56
A131: 補助者⑦実技時間2回目 | B131: 【様式２・３】実施希望調書!S56 | D131: 補助者⑦実技時間2回目 | E131: 【様式２・３】実施希望調書!S56 | G131: TRUE | J131: 【様式２・３】実施希望調書!S56
A132: 補助者⑦単労時間2回目 | B132: 【様式２・３】実施希望調書!X56 | D132: 補助者⑦単労時間2回目 | E132: 【様式２・３】実施希望調書!X56 | G132: TRUE | J132: 【様式２・３】実施希望調書!X56
A133: 補助者⑦謝金合計2回目 | B133: 【様式２・３】実施希望調書!AA56 | D133: 補助者⑦謝金合計2回目 | E133: 【様式２・３】実施希望調書!AA56 | G133: TRUE | J133: 【様式２・３】実施希望調書!AA56
A134: 補助者⑧氏名2回目 | B134: 【様式２・３】実施希望調書!F57 | D134: 補助者⑧氏名2回目 | E134: 【様式２・３】実施希望調書!F57 | G134: TRUE | J134: 【様式２・３】実施希望調書!F57
A135: 補助者⑧演奏時間2回目 | B135: 【様式２・３】実施希望調書!N57 | D135: 補助者⑧演奏時間2回目 | E135: 【様式２・３】実施希望調書!N57 | G135: TRUE | J135: 【様式２・３】実施希望調書!N57
A136: 補助者⑧実技時間2回目 | B136: 【様式２・３】実施希望調書!S57 | D136: 補助者⑧実技時間2回目 | E136: 【様式２・３】実施希望調書!S57 | G136: TRUE | J136: 【様式２・３】実施希望調書!S57
A137: 補助者⑧単労時間2回目 | B137: 【様式２・３】実施希望調書!X57 | D137: 補助者⑧単労時間2回目 | E137: 【様式２・３】実施希望調書!X57 | G137: TRUE | J137: 【様式２・３】実施希望調書!X57
A138: 補助者⑧謝金合計2回目 | B138: 【様式２・３】実施希望調書!AA57 | D138: 補助者⑧謝金合計2回目 | E138: 【様式２・３】実施希望調書!AA57 | G138: TRUE | J138: 【様式２・３】実施希望調書!AA57
A139: 2回目補助者人数 | B139: 【様式２・３】実施希望調書!F58 | D139: 2回目補助者人数 | E139: 【様式２・３】実施希望調書!F58 | G139: TRUE | J139: 【様式２・３】実施希望調書!F58
A140: 2回目謝金合計 | B140: 【様式２・３】実施希望調書!AA58 | D140: 2回目謝金合計 | E140: 【様式２・３】実施希望調書!AA58 | G140: TRUE | J140: 【様式２・３】実施希望調書!AA58
A141: 事業内容2回目 | B141: 【様式２・３】実施希望調書!B60 | D141: 事業内容2回目 | E141: 【様式２・３】実施希望調書!B60 | G141: TRUE | J141: 【様式２・３】実施希望調書!B60
A142: 実施日第3回 | B142: 【様式２・３】実施希望調書!E61 | D142: 実施日第3回 | E142: 【様式２・３】実施希望調書!E61 | G142: TRUE | J142: 【様式２・３】実施希望調書!E61
A143: 実施時間3回目 | B143: 【様式２・３】実施希望調書!S61 | D143: 実施時間3回目 | E143: 【様式２・３】実施希望調書!S61 | G143: TRUE | J143: 【様式２・３】実施希望調書!S61
A144: 実施合計3回目 | B144: 【様式２・３】実施希望調書!AA61 | D144: 実施合計3回目 | E144: 【様式２・３】実施希望調書!AA61 | G144: TRUE | J144: 【様式２・３】実施希望調書!AA61
A145: 連続する実施3回目 | B145: 【様式２・３】実施希望調書!E62 | D145: 連続する実施3回目 | E145: 【様式２・３】実施希望調書!E62 | G145: TRUE | J145: 【様式２・３】実施希望調書!E62
A146: 連続都道府県3回目 | B146: 【様式２・３】実施希望調書!O62 | D146: 連続都道府県3回目 | E146: 【様式２・３】実施希望調書!O62 | G146: TRUE | J146: 【様式２・３】実施希望調書!O62
A147: 連続学校名3回目 | B147: 【様式２・３】実施希望調書!V62 | D147: 連続学校名3回目 | E147: 【様式２・３】実施希望調書!V62 | G147: TRUE | J147: 【様式２・３】実施希望調書!V62
A148: 教科の位置付け3回目 | B148: 【様式２・３】実施希望調書!E63 | D148: 教科の位置付け3回目 | E148: 【様式２・３】実施希望調書!E63 | G148: TRUE | J148: 【様式２・３】実施希望調書!E63
A149: 教科の位置付け詳細3回目 | B149: 【様式２・３】実施希望調書!S63 | D149: 教科の位置付け詳細3回目 | E149: 【様式２・３】実施希望調書!S63 | G149: TRUE | J149: 【様式２・３】実施希望調書!S63
A150: 著作権3回目 | B150: 【様式２・３】実施希望調書!E64 | D150: 著作権3回目 | E150: 【様式２・３】実施希望調書!E64 | G150: TRUE | J150: 【様式２・３】実施希望調書!E64
A151: 著作権許諾取得有無3回目 | B151: 【様式２・３】実施希望調書!V64 | D151: 著作権許諾取得有無3回目 | E151: 【様式２・３】実施希望調書!V64 | G151: TRUE | J151: 【様式２・３】実施希望調書!V64
A152: 参加児童生徒数3回目 | B152: 【様式２・３】実施希望調書!G65 | D152: 参加児童生徒数3回目 | E152: 【様式２・３】実施希望調書!G65 | G152: TRUE | J152: 【様式２・３】実施希望調書!G65
A153: 参加児童生徒単位3回目 | B153: 【様式２・３】実施希望調書!P65 | D153: 参加児童生徒単位3回目 | E153: 【様式２・３】実施希望調書!P65 | G153: TRUE | J153: 【様式２・３】実施希望調書!P65
A154: 参加児童生徒単位詳細3回目 | B154: 【様式２・３】実施希望調書!S66 | D154: 参加児童生徒単位詳細3回目 | E154: 【様式２・３】実施希望調書!S66 | G154: TRUE | J154: 【様式２・３】実施希望調書!S66
A155: 補助者①氏名3回目 | B155: 【様式２・３】実施希望調書!F68 | D155: 補助者①氏名3回目 | E155: 【様式２・３】実施希望調書!F68 | G155: TRUE | J155: 【様式２・３】実施希望調書!F68
A156: 補助者①演奏時間3回目 | B156: 【様式２・３】実施希望調書!N68 | D156: 補助者①演奏時間3回目 | E156: 【様式２・３】実施希望調書!N68 | G156: TRUE | J156: 【様式２・３】実施希望調書!N68
A157: 補助者①実技時間3回目 | B157: 【様式２・３】実施希望調書!S68 | D157: 補助者①実技時間3回目 | E157: 【様式２・３】実施希望調書!S68 | G157: TRUE | J157: 【様式２・３】実施希望調書!S68
A158: 補助者①単労時間3回目 | B158: 【様式２・３】実施希望調書!X68 | D158: 補助者①単労時間3回目 | E158: 【様式２・３】実施希望調書!X68 | G158: TRUE | J158: 【様式２・３】実施希望調書!X68
A159: 補助者①謝金合計3回目 | B159: 【様式２・３】実施希望調書!AA68 | D159: 補助者①謝金合計3回目 | E159: 【様式２・３】実施希望調書!AA68 | G159: TRUE | J159: 【様式２・３】実施希望調書!AA68
A160: 補助者②氏名3回目 | B160: 【様式２・３】実施希望調書!F69 | D160: 補助者②氏名3回目 | E160: 【様式２・３】実施希望調書!F69 | G160: TRUE | J160: 【様式２・３】実施希望調書!F69
A161: 補助者②演奏時間3回目 | B161: 【様式２・３】実施希望調書!N69 | D161: 補助者②演奏時間3回目 | E161: 【様式２・３】実施希望調書!N69 | G161: TRUE | J161: 【様式２・３】実施希望調書!N69
A162: 補助者②実技時間3回目 | B162: 【様式２・３】実施希望調書!S69 | D162: 補助者②実技時間3回目 | E162: 【様式２・３】実施希望調書!S69 | G162: TRUE | J162: 【様式２・３】実施希望調書!S69
A163: 補助者②単労時間3回目 | B163: 【様式２・３】実施希望調書!X69 | D163: 補助者②単労時間3回目 | E163: 【様式２・３】実施希望調書!X69 | G163: TRUE | J163: 【様式２・３】実施希望調書!X69
A164: 補助者②謝金合計3回目 | B164: 【様式２・３】実施希望調書!AA69 | D164: 補助者②謝金合計3回目 | E164: 【様式２・３】実施希望調書!AA69 | G164: TRUE | J164: 【様式２・３】実施希望調書!AA69
A165: 補助者③氏名3回目 | B165: 【様式２・３】実施希望調書!F70 | D165: 補助者③氏名3回目 | E165: 【様式２・３】実施希望調書!F70 | G165: TRUE | J165: 【様式２・３】実施希望調書!F70
A166: 補助者③演奏時間3回目 | B166: 【様式２・３】実施希望調書!N70 | D166: 補助者③演奏時間3回目 | E166: 【様式２・３】実施希望調書!N70 | G166: TRUE | J166: 【様式２・３】実施希望調書!N70
A167: 補助者③実技時間3回目 | B167: 【様式２・３】実施希望調書!S70 | D167: 補助者③実技時間3回目 | E167: 【様式２・３】実施希望調書!S70 | G167: TRUE | J167: 【様式２・３】実施希望調書!S70
A168: 補助者③単労時間3回目 | B168: 【様式２・３】実施希望調書!X70 | D168: 補助者③単労時間3回目 | E168: 【様式２・３】実施希望調書!X70 | G168: TRUE | J168: 【様式２・３】実施希望調書!X70
A169: 補助者③謝金合計3回目 | B169: 【様式２・３】実施希望調書!AA70 | D169: 補助者③謝金合計3回目 | E169: 【様式２・３】実施希望調書!AA70 | G169: TRUE | J169: 【様式２・３】実施希望調書!AA70
A170: 補助者④氏名3回目 | B170: 【様式２・３】実施希望調書!F71 | D170: 補助者④氏名3回目 | E170: 【様式２・３】実施希望調書!F71 | G170: TRUE | J170: 【様式２・３】実施希望調書!F71
A171: 補助者④演奏時間3回目 | B171: 【様式２・３】実施希望調書!N71 | D171: 補助者④演奏時間3回目 | E171: 【様式２・３】実施希望調書!N71 | G171: TRUE | J171: 【様式２・３】実施希望調書!N71
A172: 補助者④実技時間3回目 | B172: 【様式２・３】実施希望調書!S71 | D172: 補助者④実技時間3回目 | E172: 【様式２・３】実施希望調書!S71 | G172: TRUE | J172: 【様式２・３】実施希望調書!S71
A173: 補助者④単労時間3回目 | B173: 【様式２・３】実施希望調書!X71 | D173: 補助者④単労時間3回目 | E173: 【様式２・３】実施希望調書!X71 | G173: TRUE | J173: 【様式２・３】実施希望調書!X71
A174: 補助者④謝金合計3回目 | B174: 【様式２・３】実施希望調書!AA71 | D174: 補助者④謝金合計3回目 | E174: 【様式２・３】実施希望調書!AA71 | G174: TRUE | J174: 【様式２・３】実施希望調書!AA71
A175: 補助者⑤氏名3回目 | B175: 【様式２・３】実施希望調書!F72 | D175: 補助者⑤氏名3回目 | E175: 【様式２・３】実施希望調書!F72 | G175: TRUE | J175: 【様式２・３】実施希望調書!F72
A176: 補助者⑤演奏時間3回目 | B176: 【様式２・３】実施希望調書!N72 | D176: 補助者⑤演奏時間3回目 | E176: 【様式２・３】実施希望調書!N72 | G176: TRUE | J176: 【様式２・３】実施希望調書!N72
A177: 補助者⑤実技時間3回目 | B177: 【様式２・３】実施希望調書!S72 | D177: 補助者⑤実技時間3回目 | E177: 【様式２・３】実施希望調書!S72 | G177: TRUE | J177: 【様式２・３】実施希望調書!S72
A178: 補助者⑤単労時間3回目 | B178: 【様式２・３】実施希望調書!X72 | D178: 補助者⑤単労時間3回目 | E178: 【様式２・３】実施希望調書!X72 | G178: TRUE | J178: 【様式２・３】実施希望調書!X72
A179: 補助者⑤謝金合計3回目 | B179: 【様式２・３】実施希望調書!AA72 | D179: 補助者⑤謝金合計3回目 | E179: 【様式２・３】実施希望調書!AA72 | G179: TRUE | J179: 【様式２・３】実施希望調書!AA72
A180: 補助者⑥氏名3回目 | B180: 【様式２・３】実施希望調書!F73 | D180: 補助者⑥氏名3回目 | E180: 【様式２・３】実施希望調書!F73 | G180: TRUE | J180: 【様式２・３】実施希望調書!F73
A181: 補助者⑥演奏時間3回目 | B181: 【様式２・３】実施希望調書!N73 | D181: 補助者⑥演奏時間3回目 | E181: 【様式２・３】実施希望調書!N73 | G181: TRUE | J181: 【様式２・３】実施希望調書!N73
A182: 補助者⑥実技時間3回目 | B182: 【様式２・３】実施希望調書!S73 | D182: 補助者⑥実技時間3回目 | E182: 【様式２・３】実施希望調書!S73 | G182: TRUE | J182: 【様式２・３】実施希望調書!S73
A183: 補助者⑥単労時間3回目 | B183: 【様式２・３】実施希望調書!X73 | D183: 補助者⑥単労時間3回目 | E183: 【様式２・３】実施希望調書!X73 | G183: TRUE | J183: 【様式２・３】実施希望調書!X73
A184: 補助者⑥謝金合計3回目 | B184: 【様式２・３】実施希望調書!AA73 | D184: 補助者⑥謝金合計3回目 | E184: 【様式２・３】実施希望調書!AA73 | G184: TRUE | J184: 【様式２・３】実施希望調書!AA73
A185: 補助者⑦氏名3回目 | B185: 【様式２・３】実施希望調書!F74 | D185: 補助者⑦氏名3回目 | E185: 【様式２・３】実施希望調書!F74 | G185: TRUE | J185: 【様式２・３】実施希望調書!F74
A186: 補助者⑦演奏時間3回目 | B186: 【様式２・３】実施希望調書!N74 | D186: 補助者⑦演奏時間3回目 | E186: 【様式２・３】実施希望調書!N74 | G186: TRUE | J186: 【様式２・３】実施希望調書!N74
A187: 補助者⑦実技時間3回目 | B187: 【様式２・３】実施希望調書!S74 | D187: 補助者⑦実技時間3回目 | E187: 【様式２・３】実施希望調書!S74 | G187: TRUE | J187: 【様式２・３】実施希望調書!S74
A188: 補助者⑦単労時間3回目 | B188: 【様式２・３】実施希望調書!X74 | D188: 補助者⑦単労時間3回目 | E188: 【様式２・３】実施希望調書!X74 | G188: TRUE | J188: 【様式２・３】実施希望調書!X74
A189: 補助者⑦謝金合計3回目 | B189: 【様式２・３】実施希望調書!AA74 | D189: 補助者⑦謝金合計3回目 | E189: 【様式２・３】実施希望調書!AA74 | G189: TRUE | J189: 【様式２・３】実施希望調書!AA74
A190: 補助者⑧氏名3回目 | B190: 【様式２・３】実施希望調書!F75 | D190: 補助者⑧氏名3回目 | E190: 【様式２・３】実施希望調書!F75 | G190: TRUE | J190: 【様式２・３】実施希望調書!F75
A191: 補助者⑧演奏時間3回目 | B191: 【様式２・３】実施希望調書!N75 | D191: 補助者⑧演奏時間3回目 | E191: 【様式２・３】実施希望調書!N75 | G191: TRUE | J191: 【様式２・３】実施希望調書!N75
A192: 補助者⑧実技時間3回目 | B192: 【様式２・３】実施希望調書!S75 | D192: 補助者⑧実技時間3回目 | E192: 【様式２・３】実施希望調書!S75 | G192: TRUE | J192: 【様式２・３】実施希望調書!S75
A193: 補助者⑧単労時間3回目 | B193: 【様式２・３】実施希望調書!X75 | D193: 補助者⑧単労時間3回目 | E193: 【様式２・３】実施希望調書!X75 | G193: TRUE | J193: 【様式２・３】実施希望調書!X75
A194: 補助者⑧謝金合計3回目 | B194: 【様式２・３】実施希望調書!AA75 | D194: 補助者⑧謝金合計3回目 | E194: 【様式２・３】実施希望調書!AA75 | G194: =EXACT(A194,D194) -> TRUE | J194: 【様式２・３】実施希望調書!AA75
A195: 3回目補助者人数 | B195: 【様式２・３】実施希望調書!F76 | D195: 3回目補助者人数 | E195: 【様式２・３】実施希望調書!F76 | G195: TRUE | J195: 【様式２・３】実施希望調書!F76
A196: 3回目謝金合計 | B196: 【様式２・３】実施希望調書!AA76 | D196: 3回目謝金合計 | E196: 【様式２・３】実施希望調書!AA76 | G196: TRUE | J196: 【様式２・３】実施希望調書!AA76
A197: 事業内容3回目 | B197: 【様式２・３】実施希望調書!B78 | D197: 事業内容3回目 | E197: 【様式２・３】実施希望調書!B78 | G197: TRUE | J197: 【様式２・３】実施希望調書!B78
A198: 謝金 | B198: 【様式２・３】実施希望調書!M102 | D198: 謝金 | E198: 【様式２・３】実施希望調書!M102 | G198: TRUE | J198: 【様式２・３】実施希望調書!M102
A199: 旅費 | B199: 【様式２・３】実施希望調書!S102 | D199: 旅費 | E199: 【様式２・３】実施希望調書!S102 | G199: TRUE | J199: 【様式２・３】実施希望調書!S102
A200: 講演等 諸雑費 | B200: 【様式２・３】実施希望調書!Y115 | D200: 講演等 諸雑費 | E200: 【様式２・３】実施希望調書!Y115 | G200: TRUE | J200: 【様式２・３】実施希望調書!Y115
... 1 more rows

Sheet 【分野】
A1: 【分野】
A2: 大項目 | E2: 中項目
A3: 1 | B3: 音楽 | E3: A | F3: ピアノ | I3: B | J3: 声楽 | M3: C | N3: 弦楽器 | Q3: D | R3: パーカッション | U3: E | V3: 管楽器 | Y3: F | Z3: その他
A4: 2 | B4: 演劇 | E4: A | F4: 現代劇 | I4: B | J4: ミュージカル | M4: C | N4: 人形劇 | Q4: D | R4: その他
A5: 3 | B5: 舞踊 | E5: A | F5: バレエ | I5: B | J5: 現代舞踊 | M5: C | N5: 身体表現 | Q5: D | R5: その他
A6: 4 | B6: 大衆芸能 | E6: A | F6: 落語 | I6: B | J6: 講談 | M6: C | N6: 漫才 | Q6: D | R6: 浪曲 | U6: E | V6: その他
A7: 5 | B7: 美術 | E7: A | F7: 洋画 | I7: B | J7: 日本画 | M7: C | N7: 版画 | Q7: D | R7: 彫刻 | U7: E | V7: 書 | Y7: F | Z7: 写真 | AC7: G | AD7: その他
A8: 6 | B8: 伝統芸能 | E8: A | F8: 歌舞伎 | I8: B | J8: 能楽 | M8: C | N8: 人形浄瑠璃 | Q8: D | R8: 日本舞踊 | U8: E | V8: 和太鼓 | Y8: F | Z8: 箏 | AC8: G | AD8: 三味線 | AG8: H | AH8: その他
A9: 7 | B9: 文学 | E9: A | F9: 俳句 | I9: B | J9: 朗読 | M9: C | N9: その他
A10: 8 | B10: 生活文化 | E10: A | F10: 囲碁 | I10: B | J10: 将棋 | M10: C | N10: 華道 | Q10: D | R10: 茶道 | U10: E | V10: 和装 | Y10: F | Z10: 食文化 | AC10: G | AD10: その他
A11: 9 | B11: メディア 芸術 | E11: A | F11: メディアアート | I11: B | J11: 映画 | M11: C | N11: アニメーション | Q11: D | R11: マンガ | U11: E | V11: その他
A12: ※様式１，様式２及び様式６の実施分野欄に，大項目の数字・中項目の英字を記入してください

Sheet 選択肢 (hidden)
A1: NO | B1: 都道府県
A2: 1 | B2: 北海道
A3: 2 | B3: 青森県
A4: 3 | B4: 岩手県
A5: 4 | B5: 宮城県
A6: 5 | B6: 秋田県
A7: 6 | B7: 山形県
A8: 7 | B8: 福島県
A9: 8 | B9: 茨城県
A10: 9 | B10: 栃木県
A11: 10 | B11: 群馬県
A12: 11 | B12: 埼玉県
A13: 12 | B13: 千葉県
A14: 13 | B14: 東京都
A15: 14 | B15: 神奈川県
A16: 15 | B16: 新潟県
A17: 16 | B17: 富山県
A18: 17 | B18: 石川県
A19: 18 | B19: 福井県
A20: 19 | B20: 山梨県
A21: 20 | B21: 長野県
A22: 21 | B22: 岐阜県
A23: 22 | B23: 静岡県
A24: 23 | B24: 愛知県
A25: 24 | B25: 三重県
A26: 25 | B26: 滋賀県
A27: 26 | B27: 京都府
A28: 27 | B28: 大阪府
A29: 28 | B29: 兵庫県
A30: 29 | B30: 奈良県
A31: 30 | B31: 和歌山県
A32: 31 | B32: 鳥取県
A33: 32 | B33: 島根県
A34: 33 | B34: 岡山県
A35: 34 | B35: 広島県
A36: 35 | B36: 山口県
A37: 36 | B37: 徳島県
A38: 37 | B38: 香川県
A39: 38 | B39: 愛媛県
A40: 39 | B40: 高知県
A41: 40 | B41: 福岡県
A42: 41 | B42: 佐賀県
A43: 42 | B43: 長崎県
A44: 43 | B44: 熊本県
A45: 44 | B45: 大分県
A46: 45 | B46: 宮崎県
A47: 46 | B47: 鹿児島県
A48: 47 | B48: 沖縄県
A49: 48 | B49: 札幌市
A50: 49 | B50: 仙台市
A51: 50 | B51: さいたま市
A52: 51 | B52: 千葉市
A53: 52 | B53: 横浜市
A54: 53 | B54: 川崎市
A55: 54 | B55: 相模原市
A56: 55 | B56: 新潟市
A57: 56 | B57: 静岡市
A58: 57 | B58: 浜松市
A59: 58 | B59: 名古屋市
A60: 59 | B60: 京都市
A61: 60 | B61: 大阪市
A62: 61 | B62: 堺市
A63: 62 | B63: 神戸市
A64: 63 | B64: 岡山市
A65: 64 | B65: 広島市
A66: 65 | B66: 北九州市
A67: 66 | B67: 福岡市
A68: 67 | B68: 熊本市

Sheet マスター_都道府県CD (hidden)
A1: 教受付NO | B1: 都道府県 | C1: 教受付NO
A2: 1 | B2: 北海道 | C2: 1
A3: 2 | B3: 青森県 | C3: 2
A4: 3 | B4: 岩手県 | C4: 3
A5: 4 | B5: 宮城県 | C5: 4
A6: 5 | B6: 秋田県 | C6: 5
A7: 6 | B7: 山形県 | C7: 6
A8: 7 | B8: 福島県 | C8: 7
A9: 8 | B9: 茨城県 | C9: 8
A10: 9 | B10: 栃木県 | C10: 9
A11: 10 | B11: 群馬県 | C11: 10
A12: 11 | B12: 埼玉県 | C12: 11
A13: 12 | B13: 千葉県 | C13: 12
A14: 13 | B14: 東京都 | C14: 13
A15: 14 | B15: 神奈川県 | C15: 14
A16: 15 | B16: 新潟県 | C16: 15
A17: 16 | B17: 富山県 | C17: 16
A18: 17 | B18: 石川県 | C18: 17
A19: 18 | B19: 福井県 | C19: 18
A20: 19 | B20: 山梨県 | C20: 19
A21: 20 | B21: 長野県 | C21: 20
A22: 21 | B22: 岐阜県 | C22: 21
A23: 22 | B23: 静岡県 | C23: 22
A24: 23 | B24: 愛知県 | C24: 23
A25: 24 | B25: 三重県 | C25: 24
A26: 25 | B26: 滋賀県 | C26: 25
A27: 26 | B27: 京都府 | C27: 26
A28: 27 | B28: 大阪府 | C28: 27
A29: 28 | B29: 兵庫県 | C29: 28
A30: 29 | B30: 奈良県 | C30: 29
A31: 30 | B31: 和歌山県 | C31: 30
A32: 31 | B32: 鳥取県 | C32: 31
A33: 32 | B33: 島根県 | C33: 32
A34: 33 | B34: 岡山県 | C34: 33
A35: 34 | B35: 広島県 | C35: 34
A36: 35 | B36: 山口県 | C36: 35
A37: 36 | B37: 徳島県 | C37: 36
A38: 37 | B38: 香川県 | C38: 37
A39: 38 | B39: 愛媛県 | C39: 38
A40: 39 | B40: 高知県 | C40: 39
A41: 40 | B41: 福岡県 | C41: 40
A42: 41 | B42: 佐賀県 | C42: 41
A43: 42 | B43: 長崎県 | C43: 42
A44: 43 | B44: 熊本県 | C44: 43
A45: 44 | B45: 大分県 | C45: 44
A46: 45 | B46: 宮崎県 | C46: 45
A47: 46 | B47: 鹿児島県 | C47: 46
A48: 47 | B48: 沖縄県 | C48: 47
A49: 48 | B49: 札幌市 | C49: 48
A50: 49 | B50: 仙台市 | C50: 49
A51: 50 | B51: さいたま市 | C51: 50
A52: 51 | B52: 千葉市 | C52: 51
A53: 52 | B53: 横浜市 | C53: 52
A54: 53 | B54: 川崎市 | C54: 53
A55: 54 | B55: 相模原市 | C55: 54
A56: 55 | B56: 新潟市 | C56: 55
A57: 56 | B57: 静岡市 | C57: 56
A58: 57 | B58: 浜松市 | C58: 57
A59: 58 | B59: 名古屋市 | C59: 58
A60: 59 | B60: 京都市 | C60: 59
A61: 60 | B61: 大阪市 | C61: 60
A62: 61 | B62: 堺市 | C62: 61
A63: 62 | B63: 神戸市 | C63: 62
A64: 63 | B64: 岡山市 | C64: 63
A65: 64 | B65: 広島市 | C65: 64
A66: 65 | B66: 北九州市 | C66: 65
A67: 66 | B67: 福岡市 | C67: 66
A68: 67 | B68: 熊本市 | C68: 67
C1168: 埼玉県 | D1168: 1 | E1168: 熊谷市立桜木小学校 | F1168: 1 | G1168: 回 | H1168: 2018-12-19 | K1168: 齊藤 才子 | L1168: 3 | M1168: 舞踊 | N1168: C | O1168: 身体表現 | P1168: 15 | Q1168: 人 | R1168: 181500 | S1168: 円 | T1168: 8820 | U1168: 円 | V1168: 0 | W1168: 円 | X1168: =SUM(R1168:V1168) -> 190320 | Y1168: 円
C1169: 埼玉県 | D1169: 2 | E1169: 熊谷市立星宮小学校 | F1169: 1 | G1169: 回 | H1169: 2018-10-31 | K1169: 齊藤 才子 | L1169: 1 | M1169: 音楽 | N1169: E | O1169: 管楽器 | P1169: 15 | Q1169: 人 | R1169: 354000 | S1169: 円 | T1169: 500000 | U1169: 円 | V1169: 0 | W1169: 円 | X1169: =SUM(R1169:V1169) -> 854000 | Y1169: 円
C1170: 埼玉県 | D1170: 3 | E1170: 朝霞市立第九小学校 | F1170: 2 | G1170: 回 | H1170: 2018-10-17 | I1170: 2018-10-18 | K1170: 小川 正毅 | L1170: 1 | M1170: 音楽 | N1170: E | O1170: 管楽器 | P1170: 15 | Q1170: 人 | R1170: 393000 | S1170: 円 | T1170: 92155 | U1170: 円 | V1170: 50000 | W1170: 円 | X1170: 535155 | Y1170: 円
C1171: 埼玉県 | D1171: 4 | E1171: 鶴ヶ島市立西中学校 | F1171: 3 | G1171: 回 | H1171: 2018-05-12 | I1171: 2018-06-02 | J1171: 2018-06-09 | K1171: 野上 博幸 | L1171: 1 | M1171: 音楽 | N1171: E | O1171: 管楽器 | P1171: 15 | Q1171: 人 | R1171: 393000 | S1171: 円 | T1171: 92285 | U1171: 円 | V1171: 50000 | W1171: 円 | X1171: 535285 | Y1171: 円
C1172: 埼玉県 | D1172: 5 | E1172: 狭山市立狭山台中学校 | F1172: 3 | G1172: 回 | H1172: 2018-06-07 | I1172: 2018-07-10 | J1172: 2018-10-22 | K1172: 濱口 裕輔 | L1172: 1 | M1172: 音楽 | N1172: F | O1172: その他 | P1172: 10 | Q1172: 人 | R1172: 198000 | S1172: 円 | T1172: 31120 | U1172: 円 | V1172: 50000 | W1172: 円 | X1172: 279120 | Y1172: 円
C1173: 埼玉県 | D1173: 6 | G1173: 回 | L1173: 1 | M1173: 音楽 | N1173: F | O1173: その他 | P1173: 10 | Q1173: 人 | R1173: 262000 | S1173: 円 | T1173: 47960 | U1173: 円 | V1173: 50000 | W1173: 円 | X1173: 359960 | Y1173: 円
C1174: 埼玉県 | D1174: 7 | G1174: 回 | L1174: 3 | M1174: 舞踊 | N1174: B | O1174: 現代舞踊 | P1174: 15 | Q1174: 人 | R1174: 393000 | S1174: 円 | T1174: 45600 | U1174: 円 | V1174: 0 | W1174: 円 | X1174: 438600 | Y1174: 円
C1175: 埼玉県 | D1175: 8 | G1175: 回 | L1175: 6 | M1175: 伝統芸能 | N1175: F | O1175: 箏 | P1175: 6 | Q1175: 人 | R1175: 185200 | S1175: 円 | T1175: 57236 | U1175: 円 | V1175: 50000 | W1175: 円 | X1175: 292436 | Y1175: 円
C1176: 埼玉県 | D1176: 9 | G1176: 回 | L1176: 6 | M1176: 伝統芸能 | N1176: F | O1176: 箏 | P1176: 6 | Q1176: 人 | R1176: 185200 | S1176: 円 | T1176: 51740 | U1176: 円 | V1176: 50000 | W1176: 円 | X1176: 286940 | Y1176: 円
C1177: 埼玉県 | D1177: 10 | G1177: 回 | L1177: 1 | M1177: 音楽 | N1177: E | O1177: 管楽器 | P1177: 12 | Q1177: 人 | R1177: 335400 | S1177: 円 | T1177: 22902 | U1177: 円 | V1177: 50000 | W1177: 円 | X1177: 408302 | Y1177: 円
C1178: 埼玉県 | D1178: 11 | G1178: 回 | L1178: 6 | M1178: 伝統芸能 | N1178: F | O1178: 箏 | P1178: 0 | Q1178: 人 | R1178: 35000 | S1178: 円 | T1178: 0 | U1178: 円 | V1178: 0 | W1178: 円 | X1178: 35000 | Y1178: 円
C1179: 埼玉県 | D1179: 12 | G1179: 回 | L1179: 1 | M1179: 音楽 | N1179: E | O1179: 管楽器 | P1179: 5 | Q1179: 人 | R1179: 131000 | S1179: 円 | T1179: 30706 | U1179: 円 | V1179: 50000 | W1179: 円 | X1179: 211706 | Y1179: 円
C1180: 埼玉県 | D1180: 13 | G1180: 回 | L1180: 2 | M1180: 演劇 | N1180: A | O1180: 現代劇 | P1180: 3 | Q1180: 人 | R1180: 135600 | S1180: 円 | T1180: 5934 | U1180: 円 | V1180: 0 | W1180: 円 | X1180: 141534 | Y1180: 円
C1181: 埼玉県 | D1181: 14 | G1181: 回 | L1181: 1 | M1181: 音楽 | N1181: D | O1181: パーカッション | P1181: 4 | Q1181: 人 | R1181: 111800 | S1181: 円 | T1181: 31199 | U1181: 円 | V1181: 32680 | W1181: 円 | X1181: 175679 | Y1181: 円
C1182: 埼玉県 | D1182: 15 | G1182: 回 | L1182: 1 | M1182: 音楽 | N1182: E | O1182: 管楽器 | P1182: 12 | Q1182: 人 | R1182: 335400 | S1182: 円 | T1182: 62168 | U1182: 円 | V1182: 50000 | W1182: 円 | X1182: 447568 | Y1182: 円
C1183: 埼玉県 | D1183: 16 | G1183: 回 | L1183: 1 | M1183: 音楽 | N1183: E | O1183: 管楽器 | P1183: 12 | Q1183: 人 | R1183: 335400 | S1183: 円 | T1183: 60113 | U1183: 円 | V1183: 50000 | W1183: 円 | X1183: 445513 | Y1183: 円
C1184: 埼玉県 | D1184: 17 | G1184: 回 | L1184: 1 | M1184: 音楽 | N1184: D | O1184: パーカッション | P1184: 4 | Q1184: 人 | R1184: 111800 | S1184: 円 | T1184: 23432 | U1184: 円 | V1184: 32680 | W1184: 円 | X1184: 167912 | Y1184: 円
C1185: 埼玉県 | D1185: 18 | G1185: 回 | L1185: 1 | M1185: 音楽 | N1185: D | O1185: パーカッション | P1185: 2 | Q1185: 人 | R1185: 73400 | S1185: 円 | T1185: 12878 | U1185: 円 | V1185: 32680 | W1185: 円 | X1185: 118958 | Y1185: 円
C1186: 埼玉県 | D1186: 19 | G1186: 回 | L1186: 1 | M1186: 音楽 | N1186: D | O1186: パーカッション | P1186: 3 | Q1186: 人 | R1186: 92600 | S1186: 円 | T1186: 10332 | U1186: 円 | V1186: 16480 | W1186: 円 | X1186: 119412 | Y1186: 円
C1187: 埼玉県 | D1187: 20 | G1187: 回 | L1187: 7 | M1187: 文学 | N1187: B | O1187: 朗読 | P1187: 2 | Q1187: 人 | R1187: 73400 | S1187: 円 | T1187: 4860 | U1187: 円 | V1187: 50000 | W1187: 円 | X1187: 128260 | Y1187: 円
C1188: 埼玉県 | D1188: 21 | E1188: 川口市立十二月田小学校 | F1188: 1 | G1188: 回 | H1188: 2018-07-04 | K1188: 三田 浩則 | L1188: 1 | M1188: 音楽 | N1188: D | O1188: パーカッション | P1188: 2 | Q1188: 人 | R1188: 73400 | S1188: 円 | T1188: 11108 | U1188: 円 | V1188: 32680 | W1188: 円 | X1188: =SUM(R1188:V1188) -> 117188 | Y1188: 円
C1189: 埼玉県 | D1189: 22 | E1189: 和光市立広沢小学校 | F1189: 1 | G1189: 回 | H1189: 2018-10-10 | K1189: 三田 浩則 | L1189: 1 | M1189: 音楽 | N1189: D | O1189: パーカッション | P1189: 2 | Q1189: 人 | R1189: 73400 | S1189: 円 | T1189: 12111 | U1189: 円 | V1189: 32680 | W1189: 円 | X1189: =SUM(R1189:V1189) -> 118191 | Y1189: 円
C1190: 埼玉県 | D1190: 23 | E1190: 戸田市立戸田南小学校 | F1190: 3 | G1190: 回 | H1190: 2018-07-16 | I1190: 2018-07-17 | J1190: 2018-07-18 | K1190: 小川 正毅 | L1190: 1 | M1190: 音楽 | N1190: E | O1190: 管楽器 | P1190: 12 | Q1190: 人 | R1190: 335400 | S1190: 円 | T1190: 24144 | U1190: 円 | V1190: 50000 | W1190: 円 | X1190: 409544 | Y1190: 円
C1191: 埼玉県 | D1191: 24 | E1191: 加須市立田ケ谷小学校 | F1191: 2 | G1191: 回 | H1191: 2018-11-07 | I1191: 2018-11-08 | K1191: 小川 正毅 | L1191: 1 | M1191: 音楽 | N1191: E | O1191: 管楽器 | P1191: 8 | Q1191: 人 | R1191: 223600 | S1191: 円 | T1191: 43206 | U1191: 円 | V1191: 50000 | W1191: 円 | X1191: 316806 | Y1191: 円
C1192: 埼玉県 | D1192: 25 | E1192: 久喜市立鷲宮小学校 | F1192: 1 | G1192: 回 | H1192: 2018-11-12 | K1192: 安村 今日子 | L1192: 1 | M1192: 音楽 | N1192: F | O1192: その他 | P1192: 1 | Q1192: 人 | R1192: 47800 | S1192: 円 | T1192: 5260 | U1192: 円 | V1192: 0 | W1192: 円 | X1192: 53060 | Y1192: 円
C1193: 埼玉県 | D1193: 26 | E1193: 久喜市立栗橋西小学校 | F1193: 3 | G1193: 回 | H1193: 2018-11-07 | I1193: 2018-11-21 | J1193: 2018-11-28 | K1193: 大谷 宥仁 | L1193: 5 | M1193: 美術 | N1193: C | O1193: 版画 | P1193: 0 | Q1193: 人 | R1193: 105000 | S1193: 円 | T1193: 3300 | U1193: 円 | V1193: 0 | W1193: 円 | X1193: 108300 | Y1193: 円
C1194: 埼玉県 | D1194: 27 | E1194: 伊奈町立小針北小学校 | F1194: 3 | G1194: 回 | H1194: 2018-11-01 | I1194: 2018-11-18 | J1194: 2018-11-19 | K1194: 小川 正毅 | L1194: 1 | M1194: 音楽 | N1194: E | O1194: 管楽器 | P1194: 12 | Q1194: 人 | R1194: 335400 | S1194: 円 | T1194: 75905 | U1194: 円 | V1194: 50000 | W1194: 円 | X1194: 461305 | Y1194: 円
C1195: 埼玉県 | D1195: 28 | E1195: 熊谷市立久下小学校 | F1195: 1 | G1195: 回 | H1195: 2018-12-11 | K1195: 齊藤 才子 | L1195: 6 | M1195: 伝統芸能 | N1195: F | O1195: 箏 | P1195: 3 | Q1195: 人 | R1195: 92600 | S1195: 円 | T1195: 28248 | U1195: 円 | V1195: 50000 | W1195: 円 | X1195: 170848 | Y1195: 円
C1196: 埼玉県 | D1196: 29 | E1196: 上尾市立大谷小学校 | F1196: 3 | G1196: 回 | H1196: 2018-06-04 | I1196: 2018-06-05 | J1196: 2018-06-06 | K1196: 小川 正毅 | L1196: 1 | M1196: 音楽 | N1196: E | O1196: 管楽器 | P1196: 12 | Q1196: 人 | R1196: 335400 | S1196: 円 | T1196: 29335 | U1196: 円 | V1196: 50000 | W1196: 円 | X1196: 414735 | Y1196: 円
C1197: 埼玉県 | D1197: 30 | E1197: 上尾市立芝川小学校 | F1197: 1 | G1197: 回 | H1197: 2018-06-03 | K1197: 小川 正毅 | L1197: 1 | M1197: 音楽 | N1197: E | O1197: 管楽器 | P1197: 4 | Q1197: 人 | R1197: 111800 | S1197: 円 | T1197: 19871 | U1197: 円 | V1197: 50000 | W1197: 円 | X1197: 181671 | Y1197: 円
C1198: 埼玉県 | D1198: 31 | E1198: 三郷市立桜小学校 | F1198: 1 | G1198: 回 | H1198: 2018-10-31 | K1198: 三田 浩則 | L1198: 1 | M1198: 音楽 | N1198: D | O1198: パーカッション | P1198: 2 | Q1198: 人 | R1198: 73400 | S1198: 円 | T1198: 12944 | U1198: 円 | V1198: 32680 | W1198: 円 | X1198: 119024 | Y1198: 円
C1199: 埼玉県 | D1199: 32 | E1199: 行田市立太田西小学校 | F1199: 3 | G1199: 回 | H1199: 2018-09-09 | I1199: 2018-10-21 | J1199: 2018-11-25 | K1199: 岡島 敦子 | L1199: 1 | M1199: 音楽 | N1199: B | O1199: 声楽 | P1199: 7 | Q1199: 人 | R1199: 212100 | S1199: 円 | T1199: 31566 | U1199: 円 | V1199: 0 | W1199: 円 | X1199: 243666 | Y1199: 円
C1200: 埼玉県 | D1200: 33 | E1200: 久喜市立太田小学校 | F1200: 3 | G1200: 回 | H1200: 2018-10-01 | I1200: 2018-10-22 | J1200: 2018-12-10 | K1200: 岡島 敦子 | L1200: 1 | M1200: 音楽 | N1200: B | O1200: 声楽 | P1200: 3 | Q1200: 人 | R1200: 162600 | S1200: 円 | T1200: 19856 | U1200: 円 | V1200: 0 | W1200: 円 | X1200: 182456 | Y1200: 円
C1201: 埼玉県 | D1201: 34 | E1201: 久喜市立菖蒲東小学校 | F1201: 1 | G1201: 回 | H1201: 2018-06-13 | K1201: 三田 浩則 | L1201: 1 | M1201: 音楽 | N1201: D | O1201: パーカッション | P1201: 3 | Q1201: 人 | R1201: 92600 | S1201: 円 | T1201: 35701 | U1201: 円 | V1201: 16480 | W1201: 円 | X1201: 144781 | Y1201: 円
C1202: 埼玉県 | D1202: 35 | E1202: 伊奈町立小室小学校 | F1202: 3 | G1202: 回 | H1202: 2018-06-19 | I1202: 2018-06-20 | J1202: 2018-06-21 | K1202: 小川 正毅 | L1202: 1 | M1202: 音楽 | N1202: E | O1202: 管楽器 | P1202: 12 | Q1202: 人 | R1202: 335400 | S1202: 円 | T1202: 69955 | U1202: 円 | V1202: 50000 | W1202: 円 | X1202: 455355 | Y1202: 円
C1203: 埼玉県 | D1203: 36 | E1203: 伊奈町立南小学校 | F1203: 3 | G1203: 回 | H1203: 2018-10-29 | I1203: 2018-10-30 | J1203: 2018-10-31 | K1203: 小川 正毅 | L1203: 1 | M1203: 音楽 | N1203: E | O1203: 管楽器 | P1203: 12 | Q1203: 人 | R1203: 335400 | S1203: 円 | T1203: 70607 | U1203: 円 | V1203: 50000 | W1203: 円 | X1203: 456007 | Y1203: 円
C1204: 埼玉県 | D1204: 37 | E1204: 熊谷市立籠原小学校 | F1204: 2 | G1204: 回 | H1204: 2018-12-17 | I1204: 2018-12-18 | K1204: 齊藤 才子 | L1204: 6 | M1204: 伝統芸能 | N1204: F | O1204: 箏 | P1204: 6 | Q1204: 人 | R1204: 185200 | S1204: 円 | T1204: 52036 | U1204: 円 | V1204: 50000 | W1204: 円 | X1204: 287236 | Y1204: 円
C1205: 埼玉県 | D1205: 38 | E1205: 熊谷市立中条中学校 | F1205: 3 | G1205: 回 | H1205: 2018-12-04 | I1205: 2018-12-06 | J1205: 2018-12-13 | K1205: 齊藤 才子 | L1205: 6 | M1205: 伝統芸能 | N1205: F | O1205: 箏 | P1205: 3 | Q1205: 人 | R1205: 162600 | S1205: 円 | T1205: 36906 | U1205: 円 | V1205: 0 | W1205: 円 | X1205: 199506 | Y1205: 円
C1206: 埼玉県 | D1206: 39 | E1206: 熊谷市立大麻生中学校 | F1206: 1 | G1206: 回 | H1206: 2018-11-20 | K1206: 齊藤 才子 | L1206: 6 | M1206: 伝統芸能 | N1206: F | O1206: 箏 | P1206: 3 | Q1206: 人 | R1206: 92600 | S1206: 円 | T1206: 28692 | U1206: 円 | V1206: 50000 | W1206: 円 | X1206: 171292 | Y1206: 円
C1207: 埼玉県 | D1207: 40 | E1207: 熊谷市立佐谷田小学校 | F1207: 1 | G1207: 回 | H1207: 2018-12-10 | K1207: 齊藤 才子 | L1207: 6 | M1207: 伝統芸能 | N1207: F | O1207: 箏 | P1207: 3 | Q1207: 人 | R1207: 92600 | S1207: 円 | T1207: 28396 | U1207: 円 | V1207: 50000 | W1207: 円 | X1207: 170996 | Y1207: 円
C1208: 埼玉県 | D1208: 41 | E1208: 熊谷市立桜木小学校 | F1208: 1 | G1208: 回 | H1208: 2018-12-19 | K1208: 齊藤 才子 | L1208: 6 | M1208: 伝統芸能 | N1208: F | O1208: 箏 | P1208: 3 | Q1208: 人 | R1208: 73400 | S1208: 円 | T1208: 28248 | U1208: 円 | V1208: 50000 | W1208: 円 | X1208: =SUM(R1208:V1208) -> 151648 | Y1208: 円
C1209: 埼玉県 | D1209: 42 | E1209: 熊谷市立星宮小学校 | F1209: 1 | G1209: 回 | H1209: 2018-10-31 | K1209: 齊藤 才子 | L1209: 6 | M1209: 伝統芸能 | N1209: F | O1209: 箏 | P1209: 3 | Q1209: 人 | R1209: 73400 | S1209: 円 | T1209: 28618 | U1209: 円 | V1209: 0 | W1209: 円 | X1209: =SUM(R1209:V1209) -> 102018 | Y1209: 円
C1210: 埼玉県 | D1210: 43 | E1210: 朝霞市立第九小学校 | F1210: 2 | G1210: 回 | H1210: 2018-10-17 | I1210: 2018-10-18 | K1210: 小川 正毅 | L1210: 1 | M1210: 音楽 | N1210: E | O1210: 管楽器 | P1210: 8 | Q1210: 人 | R1210: 223600 | S1210: 円 | T1210: 40449 | U1210: 円 | V1210: 50000 | W1210: 円 | X1210: =SUM(R1210:V1210) -> 314049 | Y1210: 円
C1211: 埼玉県 | D1211: 44 | E1211: 鶴ヶ島市立西中学校 | F1211: 3 | G1211: 回 | H1211: 2018-05-12 | I1211: 2018-06-02 | J1211: 2018-06-09 | K1211: 野上 博幸 | L1211: 1 | M1211: 音楽 | N1211: E | O1211: 管楽器 | P1211: 0 | Q1211: 人 | R1211: 105000 | S1211: 円 | T1211: 4620 | U1211: 円 | V1211: 0 | W1211: 円 | X1211: =SUM(R1211:V1211) -> 109620 | Y1211: 円
C1212: 埼玉県 | D1212: 45 | E1212: 狭山市立狭山台中学校 | F1212: 3 | G1212: 回 | H1212: 2018-06-07 | I1212: 2018-07-10 | J1212: 2018-10-22 | K1212: 濱口 裕輔 | L1212: 1 | M1212: 音楽 | N1212: E | O1212: 管楽器 | P1212: 0 | Q1212: 人 | R1212: 105000 | S1212: 円 | T1212: 3960 | U1212: 円 | V1212: 0 | W1212: 円 | X1212: =SUM(R1212:V1212) -> 108960 | Y1212: 円

Sheet 分野（様式反映用） (hidden)
D2: 音楽 | E2: 演劇 | F2: 舞踊 | G2: 大衆芸能 | H2: 美術 | I2: 伝統芸能 | J2: 文学 | K2: 生活文化 | L2: メディア芸術
A3: 1 | B3: 音楽 | D3: A ピアノ | E3: A 現代劇 | F3: A バレエ | G3: A 落語 | H3: A 洋画 | I3: A 歌舞伎 | J3: A 俳句 | K3: A 囲碁 | L3: A メディアアート
A4: 2 | B4: 演劇 | D4: B 声楽 | E4: B ミュージカル | F4: B 現代舞踊 | G4: B 講談 | H4: B 日本画 | I4: B 能楽 | J4: B 朗読 | K4: B 将棋 | L4: B 映画
A5: 3 | B5: 舞踊 | D5: C 弦楽器 | E5: C 人形劇 | F5: C 身体表現 | G5: C 漫才 | H5: C 版画 | I5: C 人形浄瑠璃 | J5: C その他 | K5: C 華道 | L5: C アニメーション
A6: 4 | B6: 大衆芸能 | D6: D パーカッション | E6: D その他 | F6: D その他 | G6: D 浪曲 | H6: D 彫刻 | I6: D 日本舞踊 | K6: D 茶道 | L6: D マンガ
A7: 5 | B7: 美術 | D7: E 管楽器 | G7: E その他 | H7: E 書 | I7: E 和太鼓 | K7: E 和装 | L7: E その他
A8: 6 | B8: 伝統芸能 | D8: F その他 | H8: F 写真 | I8: F 箏 | K8: F 食文化
A9: 7 | B9: 文学 | H9: G その他 | I9: G 三味線 | K9: G その他
A10: 8 | B10: 生活文化 | I10: H その他
A11: 9 | B11: メディア芸術
